﻿Body Name,Supp ID,,Supplier Name,Service Area Category ,Supp Grp,Period,Invoice Date,TT,Unique Invoice Reference,,Inv Amount,Account,Expenditure Description,Cost C,Cost Centre Name,Posted Amount
Nottinghamshire Fire and Rescue Service,101723,Beeston Marina Limited,Beeston Marina Limited,Management & Support Services,1,202302,23/07/2021,P6,9101276,-380.82 ,380.82 ,3102,Vehicle Maintenance Outsourced,2084,Engineering,317.36 
Nottinghamshire Fire and Rescue Service,102744,EDF Energy,EDF Energy,Prevention & Education,1,202302,13/08/2021,P6,9101340,-542.75 ,542.75 ,2100,Electricity,1036,Clifton Community Safety Centre,0.80 
Nottinghamshire Fire and Rescue Service,102744,EDF Energy,EDF Energy,Prevention & Education,1,202302,13/08/2021,P6,9101340,-542.75 ,542.75 ,2100,Electricity,1036,Clifton Community Safety Centre,451.63 
Nottinghamshire Fire and Rescue Service,102744,EDF Energy,EDF Energy,Operational Responses,1,202302,01/09/2021,P6,9101087,-926.27 ,926.27 ,2100,Electricity,1026,Arnold,771.89 
Nottinghamshire Fire and Rescue Service,102744,EDF Energy,EDF Energy,Operational Responses,1,202302,01/09/2021,P6,9101129,-273.00 ,273.00 ,2100,Electricity,1015,Collingham,227.50 
Nottinghamshire Fire and Rescue Service,102744,EDF Energy,EDF Energy,Prevention & Education,1,202302,08/09/2021,P6,9101341,-339.64 ,339.64 ,2100,Electricity,1036,Clifton Community Safety Centre,0.24 
Nottinghamshire Fire and Rescue Service,102744,EDF Energy,EDF Energy,Prevention & Education,1,202302,08/09/2021,P6,9101341,-339.64 ,339.64 ,2100,Electricity,1036,Clifton Community Safety Centre,282.83 
Nottinghamshire Fire and Rescue Service,102744,EDF Energy,EDF Energy,Operational Responses,1,202302,01/10/2021,P6,9101043,-271.05 ,271.05 ,2100,Electricity,1014,Southwell,0.25 
Nottinghamshire Fire and Rescue Service,102744,EDF Energy,EDF Energy,Operational Responses,1,202302,01/10/2021,P6,9101043,-271.05 ,271.05 ,2100,Electricity,1014,Southwell,225.67 
Nottinghamshire Fire and Rescue Service,102744,EDF Energy,EDF Energy,Operational Responses,1,202302,01/10/2021,P6,9101086,-917.54 ,917.54 ,2100,Electricity,1026,Arnold,0.74 
Nottinghamshire Fire and Rescue Service,102744,EDF Energy,EDF Energy,Operational Responses,1,202302,01/10/2021,P6,9101086,-917.54 ,917.54 ,2100,Electricity,1026,Arnold,764.00 
Nottinghamshire Fire and Rescue Service,102744,EDF Energy,EDF Energy,Operational Responses,1,202302,01/10/2021,P6,9101128,-307.64 ,307.64 ,2100,Electricity,1015,Collingham,0.22 
Nottinghamshire Fire and Rescue Service,102744,EDF Energy,EDF Energy,Operational Responses,1,202302,01/10/2021,P6,9101128,-307.64 ,307.64 ,2100,Electricity,1015,Collingham,256.19 
Nottinghamshire Fire and Rescue Service,102744,EDF Energy,EDF Energy,Operational Responses,1,202302,01/10/2021,P6,9101336,"-3,366.24 ","3,366.24 ",2100,Electricity,1005,Ashfield,"2,805.20 "
Nottinghamshire Fire and Rescue Service,102744,EDF Energy,EDF Energy,Operational Responses,1,202302,01/10/2021,P6,9101345,"-1,331.95 ","1,331.95 ",2100,Electricity,1010,Harworth,0.64 
Nottinghamshire Fire and Rescue Service,102744,EDF Energy,EDF Energy,Operational Responses,1,202302,01/10/2021,P6,9101345,"-1,331.95 ","1,331.95 ",2100,Electricity,1010,Harworth,"1,109.42 "
Nottinghamshire Fire and Rescue Service,102744,EDF Energy,EDF Energy,Operational Responses,1,202302,01/10/2021,P6,9101346,"-1,291.65 ","1,291.65 ",2100,Electricity,1023,Stapleford,"1,076.37 "
Nottinghamshire Fire and Rescue Service,102744,EDF Energy,EDF Energy,Operational Responses,1,202302,01/10/2021,P6,9101359,-528.99 ,528.99 ,2100,Electricity,1017,Bingham,0.36 
Nottinghamshire Fire and Rescue Service,102744,EDF Energy,EDF Energy,Operational Responses,1,202302,01/10/2021,P6,9101359,-528.99 ,528.99 ,2100,Electricity,1017,Bingham,440.52 
Nottinghamshire Fire and Rescue Service,101723,Beeston Marina Limited,Beeston Marina Limited,Management & Support Services,1,202302,04/10/2021,P6,9101282,-297.63 ,297.63 ,3102,Vehicle Maintenance Outsourced,2084,Engineering,248.02 
Nottinghamshire Fire and Rescue Service,102744,EDF Energy,EDF Energy,Prevention & Education,1,202302,08/10/2021,P6,9101342,-370.53 ,370.53 ,2100,Electricity,1036,Clifton Community Safety Centre,1.71 
Nottinghamshire Fire and Rescue Service,102744,EDF Energy,EDF Energy,Prevention & Education,1,202302,08/10/2021,P6,9101342,-370.53 ,370.53 ,2100,Electricity,1036,Clifton Community Safety Centre,307.35 
Nottinghamshire Fire and Rescue Service,102190,Dot Promotional Clothing,Dot Promotional Clothing,Management & Support Services,1,202302,20/10/2021,P6,9101250,-278.40 ,278.40 ,B314,Stock   ,9999,Default,232.00 
Nottinghamshire Fire and Rescue Service,102190,Dot Promotional Clothing,Dot Promotional Clothing,Management & Support Services,1,202302,26/10/2021,P6,9101249,-480.00 ,480.00 ,B314,Stock   ,9999,Default,400.00 
Nottinghamshire Fire and Rescue Service,102190,Dot Promotional Clothing,Dot Promotional Clothing,Management & Support Services,1,202302,26/10/2021,P6,9101254,-522.00 ,522.00 ,B314,Stock   ,9999,Default,435.00 
Nottinghamshire Fire and Rescue Service,102190,Dot Promotional Clothing,Dot Promotional Clothing,Management & Support Services,1,202302,27/10/2021,P6,9101256,-446.40 ,446.40 ,B314,Stock   ,9999,Default,372.00 
Nottinghamshire Fire and Rescue Service,102744,EDF Energy,EDF Energy,Operational Responses,1,202302,08/11/2021,P6,9101045,-298.24 ,298.24 ,2100,Electricity,1014,Southwell,0.49 
Nottinghamshire Fire and Rescue Service,102744,EDF Energy,EDF Energy,Operational Responses,1,202302,08/11/2021,P6,9101045,-298.24 ,298.24 ,2100,Electricity,1014,Southwell,248.13 
Nottinghamshire Fire and Rescue Service,102744,EDF Energy,EDF Energy,Operational Responses,1,202302,08/11/2021,P6,9101130,-337.78 ,337.78 ,2100,Electricity,1015,Collingham,1.38 
Nottinghamshire Fire and Rescue Service,102744,EDF Energy,EDF Energy,Operational Responses,1,202302,08/11/2021,P6,9101130,-337.78 ,337.78 ,2100,Electricity,1015,Collingham,280.34 
Nottinghamshire Fire and Rescue Service,102744,EDF Energy,EDF Energy,Prevention & Education,1,202302,08/11/2021,P6,9101337,-446.81 ,446.81 ,2100,Electricity,1036,Clifton Community Safety Centre,2.77 
Nottinghamshire Fire and Rescue Service,102744,EDF Energy,EDF Energy,Prevention & Education,1,202302,08/11/2021,P6,9101337,-446.81 ,446.81 ,2100,Electricity,1036,Clifton Community Safety Centre,370.04 
Nottinghamshire Fire and Rescue Service,102744,EDF Energy,EDF Energy,Operational Responses,1,202302,08/11/2021,P6,9101358,-291.54 ,291.54 ,2100,Electricity,1001,Mansfield,1.17 
Nottinghamshire Fire and Rescue Service,102744,EDF Energy,EDF Energy,Operational Responses,1,202302,08/11/2021,P6,9101358,-291.54 ,291.54 ,2100,Electricity,1001,Mansfield,241.97 
Nottinghamshire Fire and Rescue Service,102280,Amptron Electrical Services,Amptron Electrical Services,Management & Support Services,1,202302,18/11/2021,P6,9101262,-260.74 ,260.74 ,3102,Vehicle Maintenance Outsourced,2084,Engineering,217.28 
Nottinghamshire Fire and Rescue Service,102190,Dot Promotional Clothing,Dot Promotional Clothing,Management & Support Services,1,202302,13/12/2021,P6,9101274,-693.36 ,693.36 ,B314,Stock   ,9999,Default,577.80 
Nottinghamshire Fire and Rescue Service,103487,East Midlands Ambulance Service NHS Trust,East Midlands Ambulance Service NHS Trust,Operational Responses,1,202302,30/12/2021,P6,9101054,"-9,469.20 ","9,469.20 ",2050,Building Maintenance - Planned,1025,Hucknall,545.37 
Nottinghamshire Fire and Rescue Service,103487,East Midlands Ambulance Service NHS Trust,East Midlands Ambulance Service NHS Trust,Operational Responses,1,202302,30/12/2021,P6,9101054,"-9,469.20 ","9,469.20 ",2100,Electricity,1025,Hucknall,"1,609.83 "
Nottinghamshire Fire and Rescue Service,103487,East Midlands Ambulance Service NHS Trust,East Midlands Ambulance Service NHS Trust,Operational Responses,1,202302,30/12/2021,P6,9101054,"-9,469.20 ","9,469.20 ",2101,Gas,1025,Hucknall,690.99 
Nottinghamshire Fire and Rescue Service,103487,East Midlands Ambulance Service NHS Trust,East Midlands Ambulance Service NHS Trust,Operational Responses,1,202302,30/12/2021,P6,9101054,"-9,469.20 ","9,469.20 ",2103,Water Rates,1025,Hucknall,656.64 
Nottinghamshire Fire and Rescue Service,103487,East Midlands Ambulance Service NHS Trust,East Midlands Ambulance Service NHS Trust,Operational Responses,1,202302,30/12/2021,P6,9101054,"-9,469.20 ","9,469.20 ",2105,Business Rates,1025,Hucknall,"3,961.96 "
Nottinghamshire Fire and Rescue Service,103487,East Midlands Ambulance Service NHS Trust,East Midlands Ambulance Service NHS Trust,Operational Responses,1,202302,30/12/2021,P6,9101054,"-9,469.20 ","9,469.20 ",2106,Refuse / Trade Waste Collection,1025,Hucknall,426.21 
Nottinghamshire Fire and Rescue Service,102744,EDF Energy,EDF Energy,Operational Responses,1,202302,21/01/2022,P6,9101353,-252.82 ,252.82 ,2100,Electricity,1028,East Leake,210.68 
Nottinghamshire Fire and Rescue Service,103837,BWT UK Limited,BWT UK Limited,Operational Responses,5,202302,31/01/2022,P6,9101214,-592.19 ,592.19 ,2050,Building Maintenance - Planned,1001,Mansfield,35.00 
Nottinghamshire Fire and Rescue Service,103837,BWT UK Limited,BWT UK Limited,Operational Responses,5,202302,31/01/2022,P6,9101214,-592.19 ,592.19 ,2050,Building Maintenance - Planned,1002,Blidworth,17.50 
Nottinghamshire Fire and Rescue Service,103837,BWT UK Limited,BWT UK Limited,Operational Responses,5,202302,31/01/2022,P6,9101214,-592.19 ,592.19 ,2050,Building Maintenance - Planned,1003,London Road,29.75 
Nottinghamshire Fire and Rescue Service,103837,BWT UK Limited,BWT UK Limited,Operational Responses,5,202302,31/01/2022,P6,9101214,-592.19 ,592.19 ,2050,Building Maintenance - Planned,1005,Ashfield,17.50 
Nottinghamshire Fire and Rescue Service,103837,BWT UK Limited,BWT UK Limited,Operational Responses,5,202302,31/01/2022,P6,9101214,-592.19 ,592.19 ,2050,Building Maintenance - Planned,1006,Edwinstowe,26.25 
Nottinghamshire Fire and Rescue Service,103837,BWT UK Limited,BWT UK Limited,Operational Responses,5,202302,31/01/2022,P6,9101214,-592.19 ,592.19 ,2050,Building Maintenance - Planned,1007,Warsop,8.75 
Nottinghamshire Fire and Rescue Service,103837,BWT UK Limited,BWT UK Limited,Operational Responses,5,202302,31/01/2022,P6,9101214,-592.19 ,592.19 ,2050,Building Maintenance - Planned,1008,Worksop,17.50 
Nottinghamshire Fire and Rescue Service,103837,BWT UK Limited,BWT UK Limited,Operational Responses,5,202302,31/01/2022,P6,9101214,-592.19 ,592.19 ,2050,Building Maintenance - Planned,1010,Harworth,8.75 
Nottinghamshire Fire and Rescue Service,103837,BWT UK Limited,BWT UK Limited,Operational Responses,5,202302,31/01/2022,P6,9101214,-592.19 ,592.19 ,2050,Building Maintenance - Planned,1011,Misterton,8.75 
Nottinghamshire Fire and Rescue Service,103837,BWT UK Limited,BWT UK Limited,Operational Responses,5,202302,31/01/2022,P6,9101214,-592.19 ,592.19 ,2050,Building Maintenance - Planned,1012,Retford,26.25 
Nottinghamshire Fire and Rescue Service,103837,BWT UK Limited,BWT UK Limited,Operational Responses,5,202302,31/01/2022,P6,9101214,-592.19 ,592.19 ,2050,Building Maintenance - Planned,1013,Tuxford,8.75 
Nottinghamshire Fire and Rescue Service,103837,BWT UK Limited,BWT UK Limited,Operational Responses,5,202302,31/01/2022,P6,9101214,-592.19 ,592.19 ,2050,Building Maintenance - Planned,1014,Southwell,8.75 
Nottinghamshire Fire and Rescue Service,103837,BWT UK Limited,BWT UK Limited,Operational Responses,5,202302,31/01/2022,P6,9101214,-592.19 ,592.19 ,2050,Building Maintenance - Planned,1015,Collingham,8.75 
Nottinghamshire Fire and Rescue Service,103837,BWT UK Limited,BWT UK Limited,Operational Responses,5,202302,31/01/2022,P6,9101214,-592.19 ,592.19 ,2050,Building Maintenance - Planned,1016,Newark,17.50 
Nottinghamshire Fire and Rescue Service,103837,BWT UK Limited,BWT UK Limited,Operational Responses,5,202302,31/01/2022,P6,9101214,-592.19 ,592.19 ,2050,Building Maintenance - Planned,1017,Bingham,8.75 
Nottinghamshire Fire and Rescue Service,103837,BWT UK Limited,BWT UK Limited,Operational Responses,5,202302,31/01/2022,P6,9101214,-592.19 ,592.19 ,2050,Building Maintenance - Planned,1019,West Bridgford,17.50 
Nottinghamshire Fire and Rescue Service,103837,BWT UK Limited,BWT UK Limited,Operational Responses,5,202302,31/01/2022,P6,9101214,-592.19 ,592.19 ,2050,Building Maintenance - Planned,1020,Stockhill,17.50 
Nottinghamshire Fire and Rescue Service,103837,BWT UK Limited,BWT UK Limited,Operational Responses,5,202302,31/01/2022,P6,9101214,-592.19 ,592.19 ,2050,Building Maintenance - Planned,1023,Stapleford,8.75 
Nottinghamshire Fire and Rescue Service,103837,BWT UK Limited,BWT UK Limited,Operational Responses,5,202302,31/01/2022,P6,9101214,-592.19 ,592.19 ,2050,Building Maintenance - Planned,1024,Eastwood,8.75 
Nottinghamshire Fire and Rescue Service,103837,BWT UK Limited,BWT UK Limited,Operational Responses,5,202302,31/01/2022,P6,9101214,-592.19 ,592.19 ,2050,Building Maintenance - Planned,1025,Hucknall,8.75 
Nottinghamshire Fire and Rescue Service,103837,BWT UK Limited,BWT UK Limited,Operational Responses,5,202302,31/01/2022,P6,9101214,-592.19 ,592.19 ,2050,Building Maintenance - Planned,1026,Arnold,17.50 
Nottinghamshire Fire and Rescue Service,103837,BWT UK Limited,BWT UK Limited,Operational Responses,5,202302,31/01/2022,P6,9101214,-592.19 ,592.19 ,2050,Building Maintenance - Planned,1027,Carlton,17.50 
Nottinghamshire Fire and Rescue Service,103837,BWT UK Limited,BWT UK Limited,Operational Responses,5,202302,31/01/2022,P6,9101214,-592.19 ,592.19 ,2050,Building Maintenance - Planned,1028,East Leake,8.75 
Nottinghamshire Fire and Rescue Service,103837,BWT UK Limited,BWT UK Limited,Operational Responses,5,202302,31/01/2022,P6,9101214,-592.19 ,592.19 ,2050,Building Maintenance - Planned,1029,Highfields Station,35.00 
Nottinghamshire Fire and Rescue Service,103837,BWT UK Limited,BWT UK Limited,Management & Support Services,5,202302,31/01/2022,P6,9101214,-592.19 ,592.19 ,2050,Building Maintenance - Planned,1030,Service Development Centre,26.25 
Nottinghamshire Fire and Rescue Service,103837,BWT UK Limited,BWT UK Limited,Management & Support Services,5,202302,31/01/2022,P6,9101214,-592.19 ,592.19 ,2050,Building Maintenance - Planned,1035,Headquarters,78.75 
Nottinghamshire Fire and Rescue Service,102280,Amptron Electrical Services,Amptron Electrical Services,Operational Responses,1,202302,31/01/2022,P6,9101304,"-12,125.78 ","12,125.78 ",2050,Building Maintenance - Planned,1007,Warsop,"10,104.82 "
Nottinghamshire Fire and Rescue Service,103483,Risual Limited,Risual Limited,Management & Support Services,5,202302,14/02/2022,P6,9101258,"-1,970.96 ","1,970.96 ",4301,Phones - Landline,2097,ICT Service Operations,"1,642.47 "
Nottinghamshire Fire and Rescue Service,100093,National Fire Sprinkler Network (Nfsn),National Fire Sprinkler Network (Nfsn),Management & Support Services,1,202302,15/02/2022,P6,9101005,-250.00 ,250.00 ,4581,Subscriptions,2093,Command Suite,250.00 
Nottinghamshire Fire and Rescue Service,103793,EDF Customer Field Services,EDF Customer Field Services,Operational Responses,5,202302,16/02/2022,P6,9101365,-270.00 ,270.00 ,2100,Electricity,1008,Worksop,225.00 
Nottinghamshire Fire and Rescue Service,103820,VIA East Midlands Ltd,VIA East Midlands Ltd,Management & Support Services,5,202302,20/02/2022,P6,9101182,"-14,174.21 ","14,174.21 ",3103,Fleet Maintenance - Unplanned,2084,Engineering,"11,811.84 "
Nottinghamshire Fire and Rescue Service,102190,Dot Promotional Clothing,Dot Promotional Clothing,Management & Support Services,1,202302,22/02/2022,P6,9101252,-352.44 ,352.44 ,B314,Stock   ,9999,Default,293.70 
Nottinghamshire Fire and Rescue Service,102190,Dot Promotional Clothing,Dot Promotional Clothing,Management & Support Services,1,202302,03/03/2022,P6,9101248,-330.00 ,330.00 ,B314,Stock   ,9999,Default,275.00 
Nottinghamshire Fire and Rescue Service,100437,Nottinghamshire Fire Safety Limited,Nottinghamshire Fire Safety Limited,Operational Responses,1,202302,08/03/2022,P6,9101192,-482.08 ,482.08 ,4591,Fire Precaution Maintenance,1029,Highfields Station,185.54 
Nottinghamshire Fire and Rescue Service,100437,Nottinghamshire Fire Safety Limited,Nottinghamshire Fire Safety Limited,Operational Responses,1,202302,08/03/2022,P6,9101192,-482.08 ,482.08 ,4591,Fire Precaution Maintenance,1029,Highfields Station,216.20 
Nottinghamshire Fire and Rescue Service,104128,LeasePlan UK Limited,LeasePlan UK Limited,Management & Support Services,5,202302,09/03/2022,P6,9101141,"-1,107.78 ","1,107.78 ",3400,Hire of Fleet Vehicles,2084,Engineering,923.16 
Nottinghamshire Fire and Rescue Service,101847,The Outreach Organisation Limited,The Outreach Organisation Limited,Management & Support Services,1,202302,10/03/2022,P6,9101047,-972.00 ,972.00 ,1801,Training,2059,Corporate Training,810.00 
Nottinghamshire Fire and Rescue Service,100437,Nottinghamshire Fire Safety Limited,Nottinghamshire Fire Safety Limited,Operational Responses,1,202302,18/03/2022,P6,9101188,-273.67 ,273.67 ,4591,Fire Precaution Maintenance,1003,London Road,113.10 
Nottinghamshire Fire and Rescue Service,100437,Nottinghamshire Fire Safety Limited,Nottinghamshire Fire Safety Limited,Operational Responses,1,202302,18/03/2022,P6,9101188,-273.67 ,273.67 ,4591,Fire Precaution Maintenance,1003,London Road,114.96 
Nottinghamshire Fire and Rescue Service,100779,Local Government Association,Local Government Association,Management & Support Services,1,202302,22/03/2022,P6,9101406,"-2,691.71 ","2,691.71 ",7002,Legal Services,2049,Professional Support,"2,243.09 "
Nottinghamshire Fire and Rescue Service,102309,Walter Frank & Sons Limited,Walter Frank & Sons Limited,Management & Support Services,1,202302,23/03/2022,P6,9101119,-589.91 ,589.91 ,4534,Carriage and Packaging,2086,Procurement,18.20 
Nottinghamshire Fire and Rescue Service,102309,Walter Frank & Sons Limited,Walter Frank & Sons Limited,Management & Support Services,1,202302,23/03/2022,P6,9101119,-589.91 ,589.91 ,B314,Stock   ,9999,Default,473.39 
Nottinghamshire Fire and Rescue Service,100437,Nottinghamshire Fire Safety Limited,Nottinghamshire Fire Safety Limited,Management & Support Services,1,202302,30/03/2022,P6,9101206,-401.30 ,401.30 ,4591,Fire Precaution Maintenance,1030,Service Development Centre,151.80 
Nottinghamshire Fire and Rescue Service,100437,Nottinghamshire Fire Safety Limited,Nottinghamshire Fire Safety Limited,Management & Support Services,1,202302,30/03/2022,P6,9101206,-401.30 ,401.30 ,4591,Fire Precaution Maintenance,1030,Service Development Centre,182.62 
Nottinghamshire Fire and Rescue Service,103837,BWT UK Limited,BWT UK Limited,Operational Responses,5,202302,31/03/2022,P6,9101217,-592.19 ,592.19 ,2050,Building Maintenance - Planned,1001,Mansfield,35.00 
Nottinghamshire Fire and Rescue Service,103837,BWT UK Limited,BWT UK Limited,Operational Responses,5,202302,31/03/2022,P6,9101217,-592.19 ,592.19 ,2050,Building Maintenance - Planned,1002,Blidworth,17.50 
Nottinghamshire Fire and Rescue Service,103837,BWT UK Limited,BWT UK Limited,Operational Responses,5,202302,31/03/2022,P6,9101217,-592.19 ,592.19 ,2050,Building Maintenance - Planned,1003,London Road,29.75 
Nottinghamshire Fire and Rescue Service,103837,BWT UK Limited,BWT UK Limited,Operational Responses,5,202302,31/03/2022,P6,9101217,-592.19 ,592.19 ,2050,Building Maintenance - Planned,1005,Ashfield,17.50 
Nottinghamshire Fire and Rescue Service,103837,BWT UK Limited,BWT UK Limited,Operational Responses,5,202302,31/03/2022,P6,9101217,-592.19 ,592.19 ,2050,Building Maintenance - Planned,1006,Edwinstowe,26.25 
Nottinghamshire Fire and Rescue Service,103837,BWT UK Limited,BWT UK Limited,Operational Responses,5,202302,31/03/2022,P6,9101217,-592.19 ,592.19 ,2050,Building Maintenance - Planned,1007,Warsop,8.75 
Nottinghamshire Fire and Rescue Service,103837,BWT UK Limited,BWT UK Limited,Operational Responses,5,202302,31/03/2022,P6,9101217,-592.19 ,592.19 ,2050,Building Maintenance - Planned,1008,Worksop,17.50 
Nottinghamshire Fire and Rescue Service,103837,BWT UK Limited,BWT UK Limited,Operational Responses,5,202302,31/03/2022,P6,9101217,-592.19 ,592.19 ,2050,Building Maintenance - Planned,1010,Harworth,8.75 
Nottinghamshire Fire and Rescue Service,103837,BWT UK Limited,BWT UK Limited,Operational Responses,5,202302,31/03/2022,P6,9101217,-592.19 ,592.19 ,2050,Building Maintenance - Planned,1011,Misterton,8.75 
Nottinghamshire Fire and Rescue Service,103837,BWT UK Limited,BWT UK Limited,Operational Responses,5,202302,31/03/2022,P6,9101217,-592.19 ,592.19 ,2050,Building Maintenance - Planned,1012,Retford,26.25 
Nottinghamshire Fire and Rescue Service,103837,BWT UK Limited,BWT UK Limited,Operational Responses,5,202302,31/03/2022,P6,9101217,-592.19 ,592.19 ,2050,Building Maintenance - Planned,1013,Tuxford,8.75 
Nottinghamshire Fire and Rescue Service,103837,BWT UK Limited,BWT UK Limited,Operational Responses,5,202302,31/03/2022,P6,9101217,-592.19 ,592.19 ,2050,Building Maintenance - Planned,1014,Southwell,8.75 
Nottinghamshire Fire and Rescue Service,103837,BWT UK Limited,BWT UK Limited,Operational Responses,5,202302,31/03/2022,P6,9101217,-592.19 ,592.19 ,2050,Building Maintenance - Planned,1015,Collingham,8.75 
Nottinghamshire Fire and Rescue Service,103837,BWT UK Limited,BWT UK Limited,Operational Responses,5,202302,31/03/2022,P6,9101217,-592.19 ,592.19 ,2050,Building Maintenance - Planned,1016,Newark,17.50 
Nottinghamshire Fire and Rescue Service,103837,BWT UK Limited,BWT UK Limited,Operational Responses,5,202302,31/03/2022,P6,9101217,-592.19 ,592.19 ,2050,Building Maintenance - Planned,1017,Bingham,8.75 
Nottinghamshire Fire and Rescue Service,103837,BWT UK Limited,BWT UK Limited,Operational Responses,5,202302,31/03/2022,P6,9101217,-592.19 ,592.19 ,2050,Building Maintenance - Planned,1019,West Bridgford,17.50 
Nottinghamshire Fire and Rescue Service,103837,BWT UK Limited,BWT UK Limited,Operational Responses,5,202302,31/03/2022,P6,9101217,-592.19 ,592.19 ,2050,Building Maintenance - Planned,1020,Stockhill,17.50 
Nottinghamshire Fire and Rescue Service,103837,BWT UK Limited,BWT UK Limited,Operational Responses,5,202302,31/03/2022,P6,9101217,-592.19 ,592.19 ,2050,Building Maintenance - Planned,1023,Stapleford,8.75 
Nottinghamshire Fire and Rescue Service,103837,BWT UK Limited,BWT UK Limited,Operational Responses,5,202302,31/03/2022,P6,9101217,-592.19 ,592.19 ,2050,Building Maintenance - Planned,1024,Eastwood,8.75 
Nottinghamshire Fire and Rescue Service,103837,BWT UK Limited,BWT UK Limited,Operational Responses,5,202302,31/03/2022,P6,9101217,-592.19 ,592.19 ,2050,Building Maintenance - Planned,1025,Hucknall,8.75 
Nottinghamshire Fire and Rescue Service,103837,BWT UK Limited,BWT UK Limited,Operational Responses,5,202302,31/03/2022,P6,9101217,-592.19 ,592.19 ,2050,Building Maintenance - Planned,1026,Arnold,17.50 
Nottinghamshire Fire and Rescue Service,103837,BWT UK Limited,BWT UK Limited,Operational Responses,5,202302,31/03/2022,P6,9101217,-592.19 ,592.19 ,2050,Building Maintenance - Planned,1027,Carlton,17.50 
Nottinghamshire Fire and Rescue Service,103837,BWT UK Limited,BWT UK Limited,Operational Responses,5,202302,31/03/2022,P6,9101217,-592.19 ,592.19 ,2050,Building Maintenance - Planned,1028,East Leake,8.75 
Nottinghamshire Fire and Rescue Service,103837,BWT UK Limited,BWT UK Limited,Operational Responses,5,202302,31/03/2022,P6,9101217,-592.19 ,592.19 ,2050,Building Maintenance - Planned,1029,Highfields Station,35.00 
Nottinghamshire Fire and Rescue Service,103837,BWT UK Limited,BWT UK Limited,Management & Support Services,5,202302,31/03/2022,P6,9101217,-592.19 ,592.19 ,2050,Building Maintenance - Planned,1030,Service Development Centre,26.25 
Nottinghamshire Fire and Rescue Service,103837,BWT UK Limited,BWT UK Limited,Management & Support Services,5,202302,31/03/2022,P6,9101217,-592.19 ,592.19 ,2050,Building Maintenance - Planned,1035,Headquarters,78.75 
Nottinghamshire Fire and Rescue Service,102655,Nottingham City Council (City Treasurer),Nottingham City Council (City Treasurer),Operational Responses,1,202302,31/03/2022,P6,9101330,"-1,539.88 ","1,539.88 ",2101,Gas,1003,London Road,"1,283.23 "
Nottinghamshire Fire and Rescue Service,102228,Keltruck Limited,Keltruck Limited,Management & Support Services,1,202302,31/03/2022,P6,9101224,"-2,787.00 ","2,787.00 ",3104,Fleet - Accident Repairs,2084,Engineering,"2,322.50 "
Nottinghamshire Fire and Rescue Service,100202,Enterprise Rent-A-Car,Enterprise Rent-A-Car,Management & Support Services,1,202302,31/03/2022,P6,9101151,-342.05 ,342.05 ,3400,Hire of Fleet Vehicles,2084,Engineering,285.04 
Nottinghamshire Fire and Rescue Service,100299,FireAngel Safety Technology Limited,FireAngel Safety Technology Limited,Management & Support Services,1,202302,31/03/2022,P6,9101062,-356.40 ,356.40 ,4611,Stock Adjustments,2086,Procurement,297.00 
Nottinghamshire Fire and Rescue Service,104007,Castle Water Limited,Castle Water Limited,Operational Responses,5,202302,01/04/2022,P6,9101032,-455.70 ,455.70 ,2103,Water Rates,1016,Newark,90.06 
Nottinghamshire Fire and Rescue Service,104007,Castle Water Limited,Castle Water Limited,Operational Responses,5,202302,01/04/2022,P6,9101033,-349.29 ,349.29 ,2103,Water Rates,1016,Newark,2.24 
Nottinghamshire Fire and Rescue Service,104007,Castle Water Limited,Castle Water Limited,Operational Responses,5,202302,01/04/2022,P6,9101033,-349.29 ,349.29 ,2103,Water Rates,1016,Newark,102.10 
Nottinghamshire Fire and Rescue Service,104007,Castle Water Limited,Castle Water Limited,Management & Support Services,5,202302,01/04/2022,P6,9101034,-253.15 ,253.15 ,2103,Water Rates,1030,Service Development Centre,1.13 
Nottinghamshire Fire and Rescue Service,104007,Castle Water Limited,Castle Water Limited,Management & Support Services,5,202302,01/04/2022,P6,9101034,-253.15 ,253.15 ,2103,Water Rates,1030,Service Development Centre,153.73 
Nottinghamshire Fire and Rescue Service,104007,Castle Water Limited,Castle Water Limited,Operational Responses,5,202302,01/04/2022,P6,9101035,-270.62 ,270.62 ,2103,Water Rates,1023,Stapleford,0.98 
Nottinghamshire Fire and Rescue Service,104007,Castle Water Limited,Castle Water Limited,Operational Responses,5,202302,01/04/2022,P6,9101035,-270.62 ,270.62 ,2103,Water Rates,1023,Stapleford,123.27 
Nottinghamshire Fire and Rescue Service,104007,Castle Water Limited,Castle Water Limited,Operational Responses,5,202302,01/04/2022,P6,9101039,-486.33 ,486.33 ,2103,Water Rates,1019,West Bridgford,1.46 
Nottinghamshire Fire and Rescue Service,104007,Castle Water Limited,Castle Water Limited,Operational Responses,5,202302,01/04/2022,P6,9101039,-486.33 ,486.33 ,2103,Water Rates,1019,West Bridgford,197.61 
Nottinghamshire Fire and Rescue Service,104007,Castle Water Limited,Castle Water Limited,Operational Responses,5,202302,01/04/2022,P6,9101032,-455.70 ,455.70 ,2104,Sewerage and Environmental,1016,Newark,365.64 
Nottinghamshire Fire and Rescue Service,104007,Castle Water Limited,Castle Water Limited,Operational Responses,5,202302,01/04/2022,P6,9101033,-349.29 ,349.29 ,2104,Sewerage and Environmental,1016,Newark,224.54 
Nottinghamshire Fire and Rescue Service,104007,Castle Water Limited,Castle Water Limited,Management & Support Services,5,202302,01/04/2022,P6,9101034,-253.15 ,253.15 ,2104,Sewerage and Environmental,1030,Service Development Centre,98.29 
Nottinghamshire Fire and Rescue Service,104007,Castle Water Limited,Castle Water Limited,Operational Responses,5,202302,01/04/2022,P6,9101035,-270.62 ,270.62 ,2104,Sewerage and Environmental,1023,Stapleford,146.37 
Nottinghamshire Fire and Rescue Service,104007,Castle Water Limited,Castle Water Limited,Operational Responses,5,202302,01/04/2022,P6,9101039,-486.33 ,486.33 ,2104,Sewerage and Environmental,1019,West Bridgford,287.26 
Nottinghamshire Fire and Rescue Service,100202,Enterprise Rent-A-Car,Enterprise Rent-A-Car,Management & Support Services,1,202302,01/04/2022,P6,9101415,"-1,463.90 ","1,463.90 ",3400,Hire of Fleet Vehicles,2084,Engineering,"1,219.92 "
Nottinghamshire Fire and Rescue Service,100202,Enterprise Rent-A-Car,Enterprise Rent-A-Car,Management & Support Services,1,202302,05/04/2022,P6,9101152,-342.05 ,342.05 ,3400,Hire of Fleet Vehicles,2084,Engineering,285.04 
Nottinghamshire Fire and Rescue Service,100202,Enterprise Rent-A-Car,Enterprise Rent-A-Car,Management & Support Services,1,202302,05/04/2022,P6,9101171,-342.05 ,342.05 ,3400,Hire of Fleet Vehicles,2084,Engineering,285.04 
Nottinghamshire Fire and Rescue Service,104218,FireServiceRota B.V.,FireServiceRota B.V.,Management & Support Services,5,202302,05/04/2022,P6,9101295,"-34,583.00 ","34,583.00 ",C202,Consultancy and Services,4300,ICT Capital Programme,"34,583.00 "
Nottinghamshire Fire and Rescue Service,103377,Flat Fee Recruiter Limited,Flat Fee Recruiter Limited,Management & Support Services,5,202302,06/04/2022,P6,9101172,-298.80 ,298.80 ,1850,Recruitment Advertising,2049,Professional Support,249.00 
Nottinghamshire Fire and Rescue Service,104128,LeasePlan UK Limited,LeasePlan UK Limited,Management & Support Services,5,202302,06/04/2022,P6,9101142,"-1,107.78 ","1,107.78 ",3400,Hire of Fleet Vehicles,2084,Engineering,923.16 
Nottinghamshire Fire and Rescue Service,100202,Enterprise Rent-A-Car,Enterprise Rent-A-Car,Management & Support Services,1,202302,06/04/2022,P6,9101158,-342.05 ,342.05 ,3400,Hire of Fleet Vehicles,2084,Engineering,285.04 
Nottinghamshire Fire and Rescue Service,100202,Enterprise Rent-A-Car,Enterprise Rent-A-Car,Management & Support Services,1,202302,06/04/2022,P6,9101159,-342.05 ,342.05 ,3400,Hire of Fleet Vehicles,2084,Engineering,285.04 
Nottinghamshire Fire and Rescue Service,102586,Cfoa (Services) Ltd,Cfoa (Services) Ltd,Management & Support Services,1,202302,07/04/2022,P6,9101263,"-66,000.00 ","66,000.00 ",4581,Subscriptions,2093,Command Suite,"55,000.00 "
Nottinghamshire Fire and Rescue Service,103730,J A Burns t/a squircle IT,J A Burns t/a squircle IT,Management & Support Services,5,202302,09/04/2022,P6,9101139,"-30,960.00 ","30,960.00 ",4554,Consultancy Fees - Non Estates Related,2097,ICT Service Operations,"25,800.00 "
Nottinghamshire Fire and Rescue Service,101860,Zurich Municipal (Head Office & Underwriting),Zurich Municipal (Head Office & Underwriting),Management & Support Services,1,202302,11/04/2022,P6,9101435,-411.26 ,411.26 ,4890,Insurance - Other Premiums,2063,Risk Management & Insurance,411.26 
Nottinghamshire Fire and Rescue Service,101860,Zurich Municipal (Head Office & Underwriting),Zurich Municipal (Head Office & Underwriting),Management & Support Services,1,202302,11/04/2022,P6,9101436,"-7,621.62 ","7,621.62 ",4890,Insurance - Other Premiums,2063,Risk Management & Insurance,"7,621.62 "
Nottinghamshire Fire and Rescue Service,101860,Zurich Municipal (Head Office & Underwriting),Zurich Municipal (Head Office & Underwriting),Management & Support Services,1,202302,11/04/2022,P6,9101438,"-357,824.07 ","357,824.07 ",4890,Insurance - Other Premiums,2063,Risk Management & Insurance,"357,824.07 "
Nottinghamshire Fire and Rescue Service,102013,Nisbets Plc,Nisbets Plc,Management & Support Services,1,202302,11/04/2022,P6,9101170,"-1,501.47 ","1,501.47 ",C113,Fixtures and Fittings,4102,Strategic New Build Projects,"1,251.23 "
Nottinghamshire Fire and Rescue Service,100779,Local Government Association,Local Government Association,Management & Support Services,1,202302,12/04/2022,P6,9101180,"-12,676.57 ","12,676.57 ",4581,Subscriptions,1087,Democratic Core,"10,563.81 "
Nottinghamshire Fire and Rescue Service,104098,Total Gas & Power Limited,Total Gas & Power Limited,Operational Responses,5,202302,13/04/2022,P6,9101006,"-1,072.25 ","1,072.25 ",2101,Gas,1008,Worksop,893.54 
Nottinghamshire Fire and Rescue Service,104098,Total Gas & Power Limited,Total Gas & Power Limited,Operational Responses,5,202302,13/04/2022,P6,9101008,-499.40 ,499.40 ,2101,Gas,1012,Retford,416.17 
Nottinghamshire Fire and Rescue Service,104098,Total Gas & Power Limited,Total Gas & Power Limited,Operational Responses,5,202302,13/04/2022,P6,9101009,-607.36 ,607.36 ,2101,Gas,1027,Carlton,506.14 
Nottinghamshire Fire and Rescue Service,104098,Total Gas & Power Limited,Total Gas & Power Limited,Operational Responses,5,202302,13/04/2022,P6,9101010,-820.21 ,820.21 ,2101,Gas,1026,Arnold,683.50 
Nottinghamshire Fire and Rescue Service,104098,Total Gas & Power Limited,Total Gas & Power Limited,Prevention & Education,5,202302,13/04/2022,P6,9101011,-329.98 ,329.98 ,2101,Gas,1036,Clifton Community Safety Centre,274.98 
Nottinghamshire Fire and Rescue Service,104098,Total Gas & Power Limited,Total Gas & Power Limited,Operational Responses,5,202302,13/04/2022,P6,9101012,-361.66 ,361.66 ,2101,Gas,1016,Newark,301.38 
Nottinghamshire Fire and Rescue Service,104098,Total Gas & Power Limited,Total Gas & Power Limited,Operational Responses,5,202302,13/04/2022,P6,9101013,"-1,542.48 ","1,542.48 ",2101,Gas,1001,Mansfield,"1,285.40 "
Nottinghamshire Fire and Rescue Service,104098,Total Gas & Power Limited,Total Gas & Power Limited,Operational Responses,5,202302,13/04/2022,P6,9101014,"-1,085.39 ","1,085.39 ",2101,Gas,1029,Highfields Station,904.50 
Nottinghamshire Fire and Rescue Service,104098,Total Gas & Power Limited,Total Gas & Power Limited,Operational Responses,5,202302,13/04/2022,P6,9101015,-316.72 ,316.72 ,2101,Gas,1001,Mansfield,263.93 
Nottinghamshire Fire and Rescue Service,104098,Total Gas & Power Limited,Total Gas & Power Limited,Operational Responses,5,202302,13/04/2022,P6,9101017,-776.77 ,776.77 ,2101,Gas,1006,Edwinstowe,647.31 
Nottinghamshire Fire and Rescue Service,104098,Total Gas & Power Limited,Total Gas & Power Limited,Operational Responses,5,202302,13/04/2022,P6,9101018,"-1,456.15 ","1,456.15 ",2101,Gas,1005,Ashfield,"1,213.45 "
Nottinghamshire Fire and Rescue Service,104098,Total Gas & Power Limited,Total Gas & Power Limited,Operational Responses,5,202302,13/04/2022,P6,9101019,-306.14 ,306.14 ,2101,Gas,1010,Harworth,255.12 
Nottinghamshire Fire and Rescue Service,104098,Total Gas & Power Limited,Total Gas & Power Limited,Management & Support Services,5,202302,13/04/2022,P6,9101025,-665.99 ,665.99 ,2101,Gas,1030,Service Development Centre,554.99 
Nottinghamshire Fire and Rescue Service,104098,Total Gas & Power Limited,Total Gas & Power Limited,Operational Responses,5,202302,13/04/2022,P6,9101026,-259.40 ,259.40 ,2101,Gas,1017,Bingham,216.16 
Nottinghamshire Fire and Rescue Service,104098,Total Gas & Power Limited,Total Gas & Power Limited,Operational Responses,5,202302,13/04/2022,P6,9101356,"-1,399.50 ","1,399.50 ",2101,Gas,1020,Stockhill,"1,166.25 "
Nottinghamshire Fire and Rescue Service,104098,Total Gas & Power Limited,Total Gas & Power Limited,Operational Responses,5,202302,13/04/2022,P6,9101357,-688.08 ,688.08 ,2101,Gas,1019,West Bridgford,573.41 
Nottinghamshire Fire and Rescue Service,104098,Total Gas & Power Limited,Total Gas & Power Limited,Operational Responses,5,202302,13/04/2022,P6,9101007,-473.03 ,473.03 ,2102,Calor Gas/Fuel Oil/Coal,1024,Eastwood,394.19 
Nottinghamshire Fire and Rescue Service,101866,Leicestershire Fire & Rescue Service (Bacs),Leicestershire Fire & Rescue Service (Bacs),Management & Support Services,4,202302,14/04/2022,P6,9101339,"-22,164.00 ","22,164.00 ",1005,Admin Agency Staff,2081,Finance,"18,470.00 "
Nottinghamshire Fire and Rescue Service,102203,Flogas Britian Limited,Flogas Britian Limited,Management & Support Services,1,202302,15/04/2022,P6,9101306,"-1,173.22 ","1,173.22 ",4006,Oxygen and Other Gases,2084,Engineering,977.68 
Nottinghamshire Fire and Rescue Service,103604,E-Semble (XVR),E-Semble (XVR),Management & Support Services,5,202302,19/04/2022,P6,9101160,"-23,696.12 ","23,696.12 ",4101,Computer Software Maintenance Contracts,2095,ICT Digital Transformation,"23,696.12 "
Nottinghamshire Fire and Rescue Service,103820,VIA East Midlands Ltd,VIA East Midlands Ltd,Management & Support Services,5,202302,20/04/2022,P6,9101181,"-6,264.46 ","6,264.46 ",3100,Fleet Maintenance - Planned,2084,Engineering,"5,237.63 "
Nottinghamshire Fire and Rescue Service,103766,CERTAS,CERTAS,Operational Responses,5,202302,25/04/2022,P6,9101046,"-12,696.86 ","12,696.86 ",3200,Fuel - Vehicle,1012,Retford,"10,580.72 "
Nottinghamshire Fire and Rescue Service,103766,CERTAS,CERTAS,Operational Responses,5,202302,25/04/2022,P6,9101132,"-10,693.76 ","10,693.76 ",3200,Fuel - Vehicle,1027,Carlton,"8,911.47 "
Nottinghamshire Fire and Rescue Service,103377,Flat Fee Recruiter Limited,Flat Fee Recruiter Limited,Management & Support Services,5,202302,26/04/2022,P6,9101051,-298.80 ,298.80 ,1850,Recruitment Advertising,2049,Professional Support,249.00 
Nottinghamshire Fire and Rescue Service,100856,Arthur J Gallagher,Arthur J Gallagher,Management & Support Services,1,202302,26/04/2022,P6,9101373,"-19,260.17 ","19,260.17 ",2890,Insurance - Premises,2063,Risk Management & Insurance,"19,260.17 "
Nottinghamshire Fire and Rescue Service,103766,CERTAS,CERTAS,Operational Responses,5,202302,26/04/2022,P6,9101133,"-10,859.16 ","10,859.16 ",3200,Fuel - Vehicle,1005,Ashfield,"9,049.30 "
Nottinghamshire Fire and Rescue Service,100289,Home Office,Home Office,Management & Support Services,4,202302,26/04/2022,P6,9101167,"-46,285.65 ","46,285.65 ",4204,FireLink Contract Charges,2095,ICT Digital Transformation,"46,285.65 "
Nottinghamshire Fire and Rescue Service,102508,Collins Nets Ltd,Collins Nets Ltd,Management & Support Services,1,202302,26/04/2022,P6,9101264,-548.40 ,548.40 ,4534,Carriage and Packaging,2086,Procurement,9.00 
Nottinghamshire Fire and Rescue Service,101780,Improvement & Development Agency For Local Government,Improvement & Development Agency For Local Government,Management & Support Services,1,202302,26/04/2022,P6,9101056,"-6,562.22 ","6,562.22 ",4581,Subscriptions,1086,Corporate Core,"5,468.52 "
Nottinghamshire Fire and Rescue Service,103735,Worksop Pride,Worksop Pride,Management & Support Services,5,202302,26/04/2022,P6,9101390,-300.00 ,300.00 ,4583,Marketing and Publicity,2054,Equalities Team,300.00 
Nottinghamshire Fire and Rescue Service,100856,Arthur J Gallagher,Arthur J Gallagher,Management & Support Services,1,202302,26/04/2022,P6,9101370,"-2,135.29 ","2,135.29 ",4890,Insurance - Other Premiums,2063,Risk Management & Insurance,"2,135.29 "
Nottinghamshire Fire and Rescue Service,100856,Arthur J Gallagher,Arthur J Gallagher,Management & Support Services,1,202302,26/04/2022,P6,9101371,"-4,420.65 ","4,420.65 ",4890,Insurance - Other Premiums,2063,Risk Management & Insurance,"4,420.65 "
Nottinghamshire Fire and Rescue Service,100856,Arthur J Gallagher,Arthur J Gallagher,Management & Support Services,1,202302,26/04/2022,P6,9101372,"-23,323.70 ","23,323.70 ",4890,Insurance - Other Premiums,2063,Risk Management & Insurance,"23,323.70 "
Nottinghamshire Fire and Rescue Service,100856,Arthur J Gallagher,Arthur J Gallagher,Management & Support Services,1,202302,26/04/2022,P6,9101374,-560.00 ,560.00 ,4890,Insurance - Other Premiums,2063,Risk Management & Insurance,560.00 
Nottinghamshire Fire and Rescue Service,101782,Derbyshire Fire Authority,Derbyshire Fire Authority,Operational Responses,4,202302,26/04/2022,P6,9101233,"-414,291.66 ","414,291.66 ",5000,Third Party Payments,2005,Fire Control,"414,291.66 "
Nottinghamshire Fire and Rescue Service,102508,Collins Nets Ltd,Collins Nets Ltd,Management & Support Services,1,202302,26/04/2022,P6,9101264,-548.40 ,548.40 ,B314,Stock   ,9999,Default,448.00 
Nottinghamshire Fire and Rescue Service,100467,Kingsfield Computer Products Ltd,Kingsfield Computer Products Ltd,Management & Support Services,1,202302,26/04/2022,P6,9101076,-964.35 ,964.35 ,C200,Hardware,4102,Strategic New Build Projects,803.63 
Nottinghamshire Fire and Rescue Service,102031,West Notts College,West Notts College,Management & Support Services,1,202302,27/04/2022,P6,9101074,-425.00 ,425.00 ,1801,Training,2059,Corporate Training,425.00 
Nottinghamshire Fire and Rescue Service,103650,Carsington Sports & Leisure Limited,Carsington Sports & Leisure Limited,Management & Support Services,5,202302,27/04/2022,P6,9101173,-750.00 ,750.00 ,1801,Training,2059,Corporate Training,208.33 
Nottinghamshire Fire and Rescue Service,103650,Carsington Sports & Leisure Limited,Carsington Sports & Leisure Limited,Management & Support Services,5,202302,27/04/2022,P6,9101173,-750.00 ,750.00 ,1801,Training,2059,Corporate Training,416.67 
Nottinghamshire Fire and Rescue Service,103275,Zellis,Zellis,Management & Support Services,5,202302,27/04/2022,P6,9101140,"-1,224.16 ","1,224.16 ",4555,Disclosure Checks,2049,Professional Support,399.30 
Nottinghamshire Fire and Rescue Service,103275,Zellis,Zellis,Management & Support Services,5,202302,27/04/2022,P6,9101140,"-1,224.16 ","1,224.16 ",4555,Disclosure Checks,2049,Professional Support,745.00 
Nottinghamshire Fire and Rescue Service,102979,Planet IT Limited,Planet IT Limited,Management & Support Services,5,202302,27/04/2022,P6,9101061,"-2,250.98 ","2,250.98 ",C200,Hardware,4102,Strategic New Build Projects,"1,875.82 "
Nottinghamshire Fire and Rescue Service,102376,Bristol Uniforms Limited,Bristol Uniforms Limited,Management & Support Services,1,202302,27/04/2022,P6,9101050,"-13,761.47 ","13,761.47 ",C300,Other Equipment - Purchase,4200,Equipment Capital Programme,"11,467.89 "
Nottinghamshire Fire and Rescue Service,103923,Bupa UK Insurance Services,Bupa UK Insurance Services,Management & Support Services,5,202302,28/04/2022,P6,9101052,"-3,280.19 ","3,280.19 ",1860,Employee Benefits Schemes,2049,Professional Support,"3,280.19 "
Nottinghamshire Fire and Rescue Service,102744,EDF Energy,EDF Energy,Operational Responses,1,202302,28/04/2022,P6,9101089,-313.28 ,313.28 ,2100,Electricity,1014,Southwell,3.06 
Nottinghamshire Fire and Rescue Service,102744,EDF Energy,EDF Energy,Operational Responses,1,202302,28/04/2022,P6,9101089,-313.28 ,313.28 ,2100,Electricity,1014,Southwell,258.52 
Nottinghamshire Fire and Rescue Service,102744,EDF Energy,EDF Energy,Operational Responses,1,202302,28/04/2022,P6,9101364,-948.00 ,948.00 ,2100,Electricity,1011,Misterton,790.00 
Nottinghamshire Fire and Rescue Service,102322,Sws Environmental Services Ltd,Sws Environmental Services Ltd,Management & Support Services,1,202302,28/04/2022,P6,9101166,-420.00 ,420.00 ,4000,Operational Equipment Purchase,2084,Engineering,350.00 
Nottinghamshire Fire and Rescue Service,100468,Specialised Canvas Group,Specialised Canvas Group,Management & Support Services,1,202302,28/04/2022,P6,9101241,-252.72 ,252.72 ,4534,Carriage and Packaging,2086,Procurement,13.44 
Nottinghamshire Fire and Rescue Service,102864,William Sugden & sons Limited,William Sugden & sons Limited,Management & Support Services,5,202302,28/04/2022,P6,9101110,-402.60 ,402.60 ,B314,Stock   ,9999,Default,335.50 
Nottinghamshire Fire and Rescue Service,100468,Specialised Canvas Group,Specialised Canvas Group,Management & Support Services,1,202302,28/04/2022,P6,9101241,-252.72 ,252.72 ,B314,Stock   ,9999,Default,197.16 
Nottinghamshire Fire and Rescue Service,102211,Promotional Displays & Signs Company,Promotional Displays & Signs Company,Management & Support Services,1,202302,29/04/2022,P6,9101225,"-2,786.40 ","2,786.40 ",2000,Buildings Repairs and Maintenance - Reactive,2087,Estates Department (Previously Premises),"2,322.00 "
Nottinghamshire Fire and Rescue Service,103847,Veolia ES UK Limited,Veolia ES UK Limited,Management & Support Services,5,202302,29/04/2022,P6,9101285,"-1,573.28 ","1,573.28 ",2106,Refuse / Trade Waste Collection,2086,Procurement,"1,311.07 "
Nottinghamshire Fire and Rescue Service,103766,CERTAS,CERTAS,Management & Support Services,5,202302,29/04/2022,P6,9101177,"-3,342.97 ","3,342.97 ",3200,Fuel - Vehicle,2084,Engineering,"2,785.81 "
Nottinghamshire Fire and Rescue Service,102376,Bristol Uniforms Limited,Bristol Uniforms Limited,Management & Support Services,1,202302,29/04/2022,P6,9101293,"-10,304.63 ","10,304.63 ",4402,Uniform and Protectice Clothing Repairs,2086,Procurement,"4,855.97 "
Nottinghamshire Fire and Rescue Service,102376,Bristol Uniforms Limited,Bristol Uniforms Limited,Management & Support Services,1,202302,29/04/2022,P6,9101293,"-10,304.63 ","10,304.63 ",4403,Laundry and Dry Cleaning,2086,Procurement,"3,731.22 "
Nottinghamshire Fire and Rescue Service,103981,Joseph Gleave and Son Limited -Joseph Gleave and Son (Holdings) Limited,Joseph Gleave and Son Limited -Joseph Gleave and Son (Holdings) Limited,Management & Support Services,5,202302,29/04/2022,P6,9101070,-315.36 ,315.36 ,B314,Stock   ,9999,Default,262.80 
Nottinghamshire Fire and Rescue Service,100299,FireAngel Safety Technology Limited,FireAngel Safety Technology Limited,Management & Support Services,1,202302,29/04/2022,P6,9101078,"-7,800.00 ","7,800.00 ",B314,Stock   ,9999,Default,"6,500.00 "
Nottinghamshire Fire and Rescue Service,104064,Redbrick Print Solutions LLP,Redbrick Print Solutions LLP,Management & Support Services,5,202302,29/04/2022,P6,9101112,-288.00 ,288.00 ,B314,Stock   ,9999,Default,240.00 
Nottinghamshire Fire and Rescue Service,103483,Risual Limited,Risual Limited,Management & Support Services,5,202302,29/04/2022,P6,9101067,"-2,040.00 ","2,040.00 ",C202,Consultancy and Services,4300,ICT Capital Programme,"1,700.00 "
Nottinghamshire Fire and Rescue Service,103958,Lithium3 Technology Recruitment Limited,Lithium3 Technology Recruitment Limited,"Statutory Inspection, Certification & Enforcement",5,202302,30/04/2022,P6,9101275,-594.00 ,594.00 ,1801,Training,2021,Fire Protection,495.00 
Nottinghamshire Fire and Rescue Service,101000,C F S Messing Account Stockhill,C F S Messing Account Stockhill,Operational Responses,8,202302,30/04/2022,P6,9101286,-252.00 ,252.00 ,1814,Spoilt Meal Reimbursement,1020,Stockhill,252.00 
Nottinghamshire Fire and Rescue Service,103837,BWT UK Limited,BWT UK Limited,Management & Support Services,5,202302,30/04/2022,P6,9101057,-592.19 ,592.19 ,2050,Building Maintenance - Planned,2087,Estates Department (Previously Premises),493.50 
Nottinghamshire Fire and Rescue Service,102655,Nottingham City Council (City Treasurer),Nottingham City Council (City Treasurer),Operational Responses,1,202302,30/04/2022,P6,9101363,"-1,441.08 ","1,441.08 ",2101,Gas,1003,London Road,"1,200.90 "
Nottinghamshire Fire and Rescue Service,103847,Veolia ES UK Limited,Veolia ES UK Limited,Management & Support Services,5,202302,30/04/2022,P6,9101414,"-1,664.39 ","1,664.39 ",2106,Refuse / Trade Waste Collection,2086,Procurement,"1,386.99 "
Nottinghamshire Fire and Rescue Service,103942,The Lodge Tyre Co. Limited,The Lodge Tyre Co. Limited,Management & Support Services,5,202302,30/04/2022,P6,9101071,"-1,436.34 ","1,436.34 ",3202,Tyres,2084,Engineering,"1,196.96 "
Nottinghamshire Fire and Rescue Service,100321,Drivercheck Ltd,Drivercheck Ltd,Management & Support Services,1,202302,30/04/2022,P6,9101072,-601.50 ,601.50 ,3203,Motor Tax / Licenses,2084,Engineering,501.25 
Nottinghamshire Fire and Rescue Service,103866,Richardson Associates (UK) Limited,Richardson Associates (UK) Limited,Management & Support Services,5,202302,30/04/2022,P6,9101093,"-1,800.00 ","1,800.00 ",4554,Consultancy Fees - Non Estates Related,2054,Equalities Team,"1,500.00 "
Nottinghamshire Fire and Rescue Service,103958,Lithium3 Technology Recruitment Limited,Lithium3 Technology Recruitment Limited,Management & Support Services,5,202302,30/04/2022,P6,9101231,"-3,600.00 ","3,600.00 ",C204,Cost of Employee Working on Capital Projects,4102,Strategic New Build Projects,"3,000.00 "
Nottinghamshire Fire and Rescue Service,103373,GTT (Interoute/Easynet),GTT (Interoute/Easynet),Management & Support Services,5,202302,01/05/2022,P6,9101344,"-7,911.52 ","7,911.52 ",4101,Computer Software Maintenance Contracts,2095,ICT Digital Transformation,"6,592.93 "
Nottinghamshire Fire and Rescue Service,103092,Daisy Corporate Services Trading Limited,Daisy Corporate Services Trading Limited,Management & Support Services,1,202302,01/05/2022,P6,9101260,"-1,381.75 ","1,381.75 ",4301,Phones - Landline,2096,ICT Service Transformation,"1,151.46 "
Nottinghamshire Fire and Rescue Service,101802,EE,EE,Management & Support Services,1,202302,01/05/2022,P6,9101296,"-4,150.24 ","4,150.24 ",4302,Phones - Mobiles,2097,ICT Service Operations,"3,458.53 "
Nottinghamshire Fire and Rescue Service,103377,Flat Fee Recruiter Limited,Flat Fee Recruiter Limited,Management & Support Services,5,202302,03/05/2022,P6,9101055,-322.80 ,322.80 ,1850,Recruitment Advertising,2049,Professional Support,269.00 
Nottinghamshire Fire and Rescue Service,102744,EDF Energy,EDF Energy,Operational Responses,1,202302,03/05/2022,P6,9101084,-279.76 ,279.76 ,2100,Electricity,1015,Collingham,5.31 
Nottinghamshire Fire and Rescue Service,102744,EDF Energy,EDF Energy,Operational Responses,1,202302,03/05/2022,P6,9101084,-279.76 ,279.76 ,2100,Electricity,1015,Collingham,228.71 
Nottinghamshire Fire and Rescue Service,101903,Siemens Energy Services Ltd,Siemens Energy Services Ltd,Management & Support Services,1,202302,04/05/2022,P6,9101331,-594.46 ,594.46 ,2100,Electricity,1030,Service Development Centre,495.38 
Nottinghamshire Fire and Rescue Service,104128,LeasePlan UK Limited,LeasePlan UK Limited,Management & Support Services,5,202302,04/05/2022,P6,9101064,"-1,107.78 ","1,107.78 ",3400,Hire of Fleet Vehicles,2084,Engineering,923.16 
Nottinghamshire Fire and Rescue Service,103257,Midland HR,Midland HR,Management & Support Services,5,202302,04/05/2022,P6,9101227,"-1,248.00 ","1,248.00 ",4101,Computer Software Maintenance Contracts,2097,ICT Service Operations,"1,040.00 "
Nottinghamshire Fire and Rescue Service,102073,B D Motor Spares,B D Motor Spares,Operational Responses,1,202302,04/05/2022,P6,9101232,"-1,584.00 ","1,584.00 ",4594,Training/ Teaching Equipment,1016,Newark,660.00 
Nottinghamshire Fire and Rescue Service,102073,B D Motor Spares,B D Motor Spares,Operational Responses,1,202302,04/05/2022,P6,9101232,"-1,584.00 ","1,584.00 ",4594,Training/ Teaching Equipment,1026,Arnold,440.00 
Nottinghamshire Fire and Rescue Service,102073,B D Motor Spares,B D Motor Spares,Management & Support Services,1,202302,04/05/2022,P6,9101232,"-1,584.00 ","1,584.00 ",4594,Training/ Teaching Equipment,2059,Corporate Training,220.00 
Nottinghamshire Fire and Rescue Service,102376,Bristol Uniforms Limited,Bristol Uniforms Limited,Management & Support Services,1,202302,04/05/2022,P6,9101148,-462.26 ,462.26 ,B314,Stock   ,9999,Default,385.22 
Nottinghamshire Fire and Rescue Service,104167,"Graham Asset Management, John Graham Holdings Limited","Graham Asset Management, John Graham Holdings Limited",Management & Support Services,5,202302,05/05/2022,P6,9101058,"-68,479.91 ","68,479.91 ",2000,Buildings Repairs and Maintenance - Reactive,2087,Estates Department (Previously Premises),33.00 
Nottinghamshire Fire and Rescue Service,104167,"Graham Asset Management, John Graham Holdings Limited","Graham Asset Management, John Graham Holdings Limited",Management & Support Services,5,202302,05/05/2022,P6,9101058,"-68,479.91 ","68,479.91 ",2000,Buildings Repairs and Maintenance - Reactive,2087,Estates Department (Previously Premises),153.39 
Nottinghamshire Fire and Rescue Service,104167,"Graham Asset Management, John Graham Holdings Limited","Graham Asset Management, John Graham Holdings Limited",Management & Support Services,5,202302,05/05/2022,P6,9101058,"-68,479.91 ","68,479.91 ",2000,Buildings Repairs and Maintenance - Reactive,2087,Estates Department (Previously Premises),171.88 
Nottinghamshire Fire and Rescue Service,104167,"Graham Asset Management, John Graham Holdings Limited","Graham Asset Management, John Graham Holdings Limited",Management & Support Services,5,202302,05/05/2022,P6,9101058,"-68,479.91 ","68,479.91 ",2000,Buildings Repairs and Maintenance - Reactive,2087,Estates Department (Previously Premises),207.38 
Nottinghamshire Fire and Rescue Service,104167,"Graham Asset Management, John Graham Holdings Limited","Graham Asset Management, John Graham Holdings Limited",Management & Support Services,5,202302,05/05/2022,P6,9101058,"-68,479.91 ","68,479.91 ",2000,Buildings Repairs and Maintenance - Reactive,2087,Estates Department (Previously Premises),287.46 
Nottinghamshire Fire and Rescue Service,104167,"Graham Asset Management, John Graham Holdings Limited","Graham Asset Management, John Graham Holdings Limited",Management & Support Services,5,202302,05/05/2022,P6,9101058,"-68,479.91 ","68,479.91 ",2000,Buildings Repairs and Maintenance - Reactive,2087,Estates Department (Previously Premises),437.25 
Nottinghamshire Fire and Rescue Service,104167,"Graham Asset Management, John Graham Holdings Limited","Graham Asset Management, John Graham Holdings Limited",Management & Support Services,5,202302,05/05/2022,P6,9101058,"-68,479.91 ","68,479.91 ",2000,Buildings Repairs and Maintenance - Reactive,2087,Estates Department (Previously Premises),459.89 
Nottinghamshire Fire and Rescue Service,104167,"Graham Asset Management, John Graham Holdings Limited","Graham Asset Management, John Graham Holdings Limited",Management & Support Services,5,202302,05/05/2022,P6,9101058,"-68,479.91 ","68,479.91 ",2000,Buildings Repairs and Maintenance - Reactive,2087,Estates Department (Previously Premises),872.72 
Nottinghamshire Fire and Rescue Service,104167,"Graham Asset Management, John Graham Holdings Limited","Graham Asset Management, John Graham Holdings Limited",Management & Support Services,5,202302,05/05/2022,P6,9101058,"-68,479.91 ","68,479.91 ",2000,Buildings Repairs and Maintenance - Reactive,2087,Estates Department (Previously Premises),887.52 
Nottinghamshire Fire and Rescue Service,104167,"Graham Asset Management, John Graham Holdings Limited","Graham Asset Management, John Graham Holdings Limited",Management & Support Services,5,202302,05/05/2022,P6,9101058,"-68,479.91 ","68,479.91 ",2000,Buildings Repairs and Maintenance - Reactive,2087,Estates Department (Previously Premises),951.82 
Nottinghamshire Fire and Rescue Service,104167,"Graham Asset Management, John Graham Holdings Limited","Graham Asset Management, John Graham Holdings Limited",Management & Support Services,5,202302,05/05/2022,P6,9101058,"-68,479.91 ","68,479.91 ",2000,Buildings Repairs and Maintenance - Reactive,2087,Estates Department (Previously Premises),"1,100.10 "
Nottinghamshire Fire and Rescue Service,104167,"Graham Asset Management, John Graham Holdings Limited","Graham Asset Management, John Graham Holdings Limited",Management & Support Services,5,202302,05/05/2022,P6,9101058,"-68,479.91 ","68,479.91 ",2000,Buildings Repairs and Maintenance - Reactive,2087,Estates Department (Previously Premises),"1,131.49 "
Nottinghamshire Fire and Rescue Service,104167,"Graham Asset Management, John Graham Holdings Limited","Graham Asset Management, John Graham Holdings Limited",Management & Support Services,5,202302,05/05/2022,P6,9101058,"-68,479.91 ","68,479.91 ",2000,Buildings Repairs and Maintenance - Reactive,2087,Estates Department (Previously Premises),"1,197.30 "
Nottinghamshire Fire and Rescue Service,104167,"Graham Asset Management, John Graham Holdings Limited","Graham Asset Management, John Graham Holdings Limited",Management & Support Services,5,202302,05/05/2022,P6,9101058,"-68,479.91 ","68,479.91 ",2000,Buildings Repairs and Maintenance - Reactive,2087,Estates Department (Previously Premises),"1,312.25 "
Nottinghamshire Fire and Rescue Service,104167,"Graham Asset Management, John Graham Holdings Limited","Graham Asset Management, John Graham Holdings Limited",Management & Support Services,5,202302,05/05/2022,P6,9101058,"-68,479.91 ","68,479.91 ",2000,Buildings Repairs and Maintenance - Reactive,2087,Estates Department (Previously Premises),"1,773.39 "
Nottinghamshire Fire and Rescue Service,104167,"Graham Asset Management, John Graham Holdings Limited","Graham Asset Management, John Graham Holdings Limited",Management & Support Services,5,202302,05/05/2022,P6,9101058,"-68,479.91 ","68,479.91 ",2000,Buildings Repairs and Maintenance - Reactive,2087,Estates Department (Previously Premises),"2,117.41 "
Nottinghamshire Fire and Rescue Service,104167,"Graham Asset Management, John Graham Holdings Limited","Graham Asset Management, John Graham Holdings Limited",Management & Support Services,5,202302,05/05/2022,P6,9101058,"-68,479.91 ","68,479.91 ",2000,Buildings Repairs and Maintenance - Reactive,2087,Estates Department (Previously Premises),"2,741.67 "
Nottinghamshire Fire and Rescue Service,104167,"Graham Asset Management, John Graham Holdings Limited","Graham Asset Management, John Graham Holdings Limited",Management & Support Services,5,202302,05/05/2022,P6,9101058,"-68,479.91 ","68,479.91 ",2000,Buildings Repairs and Maintenance - Reactive,2087,Estates Department (Previously Premises),"3,340.55 "
Nottinghamshire Fire and Rescue Service,104167,"Graham Asset Management, John Graham Holdings Limited","Graham Asset Management, John Graham Holdings Limited",Management & Support Services,5,202302,05/05/2022,P6,9101058,"-68,479.91 ","68,479.91 ",2000,Buildings Repairs and Maintenance - Reactive,2087,Estates Department (Previously Premises),"3,553.82 "
Nottinghamshire Fire and Rescue Service,104167,"Graham Asset Management, John Graham Holdings Limited","Graham Asset Management, John Graham Holdings Limited",Management & Support Services,5,202302,05/05/2022,P6,9101058,"-68,479.91 ","68,479.91 ",2000,Buildings Repairs and Maintenance - Reactive,2087,Estates Department (Previously Premises),"4,283.58 "
Nottinghamshire Fire and Rescue Service,104167,"Graham Asset Management, John Graham Holdings Limited","Graham Asset Management, John Graham Holdings Limited",Management & Support Services,5,202302,05/05/2022,P6,9101058,"-68,479.91 ","68,479.91 ",2000,Buildings Repairs and Maintenance - Reactive,2087,Estates Department (Previously Premises),"4,383.82 "
Nottinghamshire Fire and Rescue Service,104167,"Graham Asset Management, John Graham Holdings Limited","Graham Asset Management, John Graham Holdings Limited",Management & Support Services,5,202302,05/05/2022,P6,9101058,"-68,479.91 ","68,479.91 ",2000,Buildings Repairs and Maintenance - Reactive,2087,Estates Department (Previously Premises),"4,893.71 "
Nottinghamshire Fire and Rescue Service,104167,"Graham Asset Management, John Graham Holdings Limited","Graham Asset Management, John Graham Holdings Limited",Management & Support Services,5,202302,05/05/2022,P6,9101058,"-68,479.91 ","68,479.91 ",2000,Buildings Repairs and Maintenance - Reactive,2087,Estates Department (Previously Premises),"5,744.04 "
Nottinghamshire Fire and Rescue Service,104167,"Graham Asset Management, John Graham Holdings Limited","Graham Asset Management, John Graham Holdings Limited",Management & Support Services,5,202302,05/05/2022,P6,9101058,"-68,479.91 ","68,479.91 ",2000,Buildings Repairs and Maintenance - Reactive,2087,Estates Department (Previously Premises),"5,967.70 "
Nottinghamshire Fire and Rescue Service,104167,"Graham Asset Management, John Graham Holdings Limited","Graham Asset Management, John Graham Holdings Limited",Management & Support Services,5,202302,05/05/2022,P6,9101058,"-68,479.91 ","68,479.91 ",2000,Buildings Repairs and Maintenance - Reactive,2087,Estates Department (Previously Premises),"9,063.43 "
Nottinghamshire Fire and Rescue Service,104167,"Graham Asset Management, John Graham Holdings Limited","Graham Asset Management, John Graham Holdings Limited",Management & Support Services,5,202302,05/05/2022,P6,9101060,"-30,634.69 ","30,634.69 ",2000,Buildings Repairs and Maintenance - Reactive,2087,Estates Department (Previously Premises),48.45 
Nottinghamshire Fire and Rescue Service,104167,"Graham Asset Management, John Graham Holdings Limited","Graham Asset Management, John Graham Holdings Limited",Management & Support Services,5,202302,05/05/2022,P6,9101060,"-30,634.69 ","30,634.69 ",2000,Buildings Repairs and Maintenance - Reactive,2087,Estates Department (Previously Premises),104.52 
Nottinghamshire Fire and Rescue Service,104167,"Graham Asset Management, John Graham Holdings Limited","Graham Asset Management, John Graham Holdings Limited",Management & Support Services,5,202302,05/05/2022,P6,9101060,"-30,634.69 ","30,634.69 ",2000,Buildings Repairs and Maintenance - Reactive,2087,Estates Department (Previously Premises),153.31 
Nottinghamshire Fire and Rescue Service,104167,"Graham Asset Management, John Graham Holdings Limited","Graham Asset Management, John Graham Holdings Limited",Management & Support Services,5,202302,05/05/2022,P6,9101060,"-30,634.69 ","30,634.69 ",2000,Buildings Repairs and Maintenance - Reactive,2087,Estates Department (Previously Premises),159.62 
Nottinghamshire Fire and Rescue Service,104167,"Graham Asset Management, John Graham Holdings Limited","Graham Asset Management, John Graham Holdings Limited",Management & Support Services,5,202302,05/05/2022,P6,9101060,"-30,634.69 ","30,634.69 ",2000,Buildings Repairs and Maintenance - Reactive,2087,Estates Department (Previously Premises),162.17 
Nottinghamshire Fire and Rescue Service,104167,"Graham Asset Management, John Graham Holdings Limited","Graham Asset Management, John Graham Holdings Limited",Management & Support Services,5,202302,05/05/2022,P6,9101060,"-30,634.69 ","30,634.69 ",2000,Buildings Repairs and Maintenance - Reactive,2087,Estates Department (Previously Premises),233.76 
Nottinghamshire Fire and Rescue Service,104167,"Graham Asset Management, John Graham Holdings Limited","Graham Asset Management, John Graham Holdings Limited",Management & Support Services,5,202302,05/05/2022,P6,9101060,"-30,634.69 ","30,634.69 ",2000,Buildings Repairs and Maintenance - Reactive,2087,Estates Department (Previously Premises),245.67 
Nottinghamshire Fire and Rescue Service,104167,"Graham Asset Management, John Graham Holdings Limited","Graham Asset Management, John Graham Holdings Limited",Management & Support Services,5,202302,05/05/2022,P6,9101060,"-30,634.69 ","30,634.69 ",2000,Buildings Repairs and Maintenance - Reactive,2087,Estates Department (Previously Premises),277.07 
Nottinghamshire Fire and Rescue Service,104167,"Graham Asset Management, John Graham Holdings Limited","Graham Asset Management, John Graham Holdings Limited",Management & Support Services,5,202302,05/05/2022,P6,9101060,"-30,634.69 ","30,634.69 ",2000,Buildings Repairs and Maintenance - Reactive,2087,Estates Department (Previously Premises),344.78 
Nottinghamshire Fire and Rescue Service,104167,"Graham Asset Management, John Graham Holdings Limited","Graham Asset Management, John Graham Holdings Limited",Management & Support Services,5,202302,05/05/2022,P6,9101060,"-30,634.69 ","30,634.69 ",2000,Buildings Repairs and Maintenance - Reactive,2087,Estates Department (Previously Premises),596.49 
Nottinghamshire Fire and Rescue Service,104167,"Graham Asset Management, John Graham Holdings Limited","Graham Asset Management, John Graham Holdings Limited",Management & Support Services,5,202302,05/05/2022,P6,9101060,"-30,634.69 ","30,634.69 ",2000,Buildings Repairs and Maintenance - Reactive,2087,Estates Department (Previously Premises),696.61 
Nottinghamshire Fire and Rescue Service,104167,"Graham Asset Management, John Graham Holdings Limited","Graham Asset Management, John Graham Holdings Limited",Management & Support Services,5,202302,05/05/2022,P6,9101060,"-30,634.69 ","30,634.69 ",2000,Buildings Repairs and Maintenance - Reactive,2087,Estates Department (Previously Premises),703.19 
Nottinghamshire Fire and Rescue Service,104167,"Graham Asset Management, John Graham Holdings Limited","Graham Asset Management, John Graham Holdings Limited",Management & Support Services,5,202302,05/05/2022,P6,9101060,"-30,634.69 ","30,634.69 ",2000,Buildings Repairs and Maintenance - Reactive,2087,Estates Department (Previously Premises),720.48 
Nottinghamshire Fire and Rescue Service,104167,"Graham Asset Management, John Graham Holdings Limited","Graham Asset Management, John Graham Holdings Limited",Management & Support Services,5,202302,05/05/2022,P6,9101060,"-30,634.69 ","30,634.69 ",2000,Buildings Repairs and Maintenance - Reactive,2087,Estates Department (Previously Premises),803.86 
Nottinghamshire Fire and Rescue Service,104167,"Graham Asset Management, John Graham Holdings Limited","Graham Asset Management, John Graham Holdings Limited",Management & Support Services,5,202302,05/05/2022,P6,9101060,"-30,634.69 ","30,634.69 ",2000,Buildings Repairs and Maintenance - Reactive,2087,Estates Department (Previously Premises),"1,113.02 "
Nottinghamshire Fire and Rescue Service,104167,"Graham Asset Management, John Graham Holdings Limited","Graham Asset Management, John Graham Holdings Limited",Management & Support Services,5,202302,05/05/2022,P6,9101060,"-30,634.69 ","30,634.69 ",2000,Buildings Repairs and Maintenance - Reactive,2087,Estates Department (Previously Premises),"1,392.64 "
Nottinghamshire Fire and Rescue Service,104167,"Graham Asset Management, John Graham Holdings Limited","Graham Asset Management, John Graham Holdings Limited",Management & Support Services,5,202302,05/05/2022,P6,9101060,"-30,634.69 ","30,634.69 ",2000,Buildings Repairs and Maintenance - Reactive,2087,Estates Department (Previously Premises),"1,489.58 "
Nottinghamshire Fire and Rescue Service,104167,"Graham Asset Management, John Graham Holdings Limited","Graham Asset Management, John Graham Holdings Limited",Management & Support Services,5,202302,05/05/2022,P6,9101060,"-30,634.69 ","30,634.69 ",2000,Buildings Repairs and Maintenance - Reactive,2087,Estates Department (Previously Premises),"1,539.09 "
Nottinghamshire Fire and Rescue Service,104167,"Graham Asset Management, John Graham Holdings Limited","Graham Asset Management, John Graham Holdings Limited",Management & Support Services,5,202302,05/05/2022,P6,9101060,"-30,634.69 ","30,634.69 ",2000,Buildings Repairs and Maintenance - Reactive,2087,Estates Department (Previously Premises),"1,711.94 "
Nottinghamshire Fire and Rescue Service,104167,"Graham Asset Management, John Graham Holdings Limited","Graham Asset Management, John Graham Holdings Limited",Management & Support Services,5,202302,05/05/2022,P6,9101060,"-30,634.69 ","30,634.69 ",2000,Buildings Repairs and Maintenance - Reactive,2087,Estates Department (Previously Premises),"2,027.50 "
Nottinghamshire Fire and Rescue Service,104167,"Graham Asset Management, John Graham Holdings Limited","Graham Asset Management, John Graham Holdings Limited",Management & Support Services,5,202302,05/05/2022,P6,9101060,"-30,634.69 ","30,634.69 ",2000,Buildings Repairs and Maintenance - Reactive,2087,Estates Department (Previously Premises),"2,179.26 "
Nottinghamshire Fire and Rescue Service,104167,"Graham Asset Management, John Graham Holdings Limited","Graham Asset Management, John Graham Holdings Limited",Management & Support Services,5,202302,05/05/2022,P6,9101060,"-30,634.69 ","30,634.69 ",2000,Buildings Repairs and Maintenance - Reactive,2087,Estates Department (Previously Premises),"2,238.78 "
Nottinghamshire Fire and Rescue Service,104167,"Graham Asset Management, John Graham Holdings Limited","Graham Asset Management, John Graham Holdings Limited",Management & Support Services,5,202302,05/05/2022,P6,9101060,"-30,634.69 ","30,634.69 ",2000,Buildings Repairs and Maintenance - Reactive,2087,Estates Department (Previously Premises),"2,396.60 "
Nottinghamshire Fire and Rescue Service,104167,"Graham Asset Management, John Graham Holdings Limited","Graham Asset Management, John Graham Holdings Limited",Management & Support Services,5,202302,05/05/2022,P6,9101060,"-30,634.69 ","30,634.69 ",2000,Buildings Repairs and Maintenance - Reactive,2087,Estates Department (Previously Premises),"4,190.53 "
Nottinghamshire Fire and Rescue Service,104167,"Graham Asset Management, John Graham Holdings Limited","Graham Asset Management, John Graham Holdings Limited",Management & Support Services,5,202302,05/05/2022,P6,9101059,"-12,339.54 ","12,339.54 ",2050,Building Maintenance - Planned,2087,Estates Department (Previously Premises),17.80 
Nottinghamshire Fire and Rescue Service,104167,"Graham Asset Management, John Graham Holdings Limited","Graham Asset Management, John Graham Holdings Limited",Management & Support Services,5,202302,05/05/2022,P6,9101059,"-12,339.54 ","12,339.54 ",2050,Building Maintenance - Planned,2087,Estates Department (Previously Premises),44.89 
Nottinghamshire Fire and Rescue Service,104167,"Graham Asset Management, John Graham Holdings Limited","Graham Asset Management, John Graham Holdings Limited",Management & Support Services,5,202302,05/05/2022,P6,9101059,"-12,339.54 ","12,339.54 ",2050,Building Maintenance - Planned,2087,Estates Department (Previously Premises),54.98 
Nottinghamshire Fire and Rescue Service,104167,"Graham Asset Management, John Graham Holdings Limited","Graham Asset Management, John Graham Holdings Limited",Management & Support Services,5,202302,05/05/2022,P6,9101059,"-12,339.54 ","12,339.54 ",2050,Building Maintenance - Planned,2087,Estates Department (Previously Premises),72.34 
Nottinghamshire Fire and Rescue Service,104167,"Graham Asset Management, John Graham Holdings Limited","Graham Asset Management, John Graham Holdings Limited",Management & Support Services,5,202302,05/05/2022,P6,9101059,"-12,339.54 ","12,339.54 ",2050,Building Maintenance - Planned,2087,Estates Department (Previously Premises),89.59 
Nottinghamshire Fire and Rescue Service,104167,"Graham Asset Management, John Graham Holdings Limited","Graham Asset Management, John Graham Holdings Limited",Management & Support Services,5,202302,05/05/2022,P6,9101059,"-12,339.54 ","12,339.54 ",2050,Building Maintenance - Planned,2087,Estates Department (Previously Premises),97.29 
Nottinghamshire Fire and Rescue Service,104167,"Graham Asset Management, John Graham Holdings Limited","Graham Asset Management, John Graham Holdings Limited",Management & Support Services,5,202302,05/05/2022,P6,9101059,"-12,339.54 ","12,339.54 ",2050,Building Maintenance - Planned,2087,Estates Department (Previously Premises),117.32 
Nottinghamshire Fire and Rescue Service,104167,"Graham Asset Management, John Graham Holdings Limited","Graham Asset Management, John Graham Holdings Limited",Management & Support Services,5,202302,05/05/2022,P6,9101059,"-12,339.54 ","12,339.54 ",2050,Building Maintenance - Planned,2087,Estates Department (Previously Premises),162.09 
Nottinghamshire Fire and Rescue Service,104167,"Graham Asset Management, John Graham Holdings Limited","Graham Asset Management, John Graham Holdings Limited",Management & Support Services,5,202302,05/05/2022,P6,9101059,"-12,339.54 ","12,339.54 ",2050,Building Maintenance - Planned,2087,Estates Department (Previously Premises),169.26 
Nottinghamshire Fire and Rescue Service,104167,"Graham Asset Management, John Graham Holdings Limited","Graham Asset Management, John Graham Holdings Limited",Management & Support Services,5,202302,05/05/2022,P6,9101059,"-12,339.54 ","12,339.54 ",2050,Building Maintenance - Planned,2087,Estates Department (Previously Premises),188.22 
Nottinghamshire Fire and Rescue Service,104167,"Graham Asset Management, John Graham Holdings Limited","Graham Asset Management, John Graham Holdings Limited",Management & Support Services,5,202302,05/05/2022,P6,9101059,"-12,339.54 ","12,339.54 ",2050,Building Maintenance - Planned,2087,Estates Department (Previously Premises),242.92 
Nottinghamshire Fire and Rescue Service,104167,"Graham Asset Management, John Graham Holdings Limited","Graham Asset Management, John Graham Holdings Limited",Management & Support Services,5,202302,05/05/2022,P6,9101059,"-12,339.54 ","12,339.54 ",2050,Building Maintenance - Planned,2087,Estates Department (Previously Premises),266.50 
Nottinghamshire Fire and Rescue Service,104167,"Graham Asset Management, John Graham Holdings Limited","Graham Asset Management, John Graham Holdings Limited",Management & Support Services,5,202302,05/05/2022,P6,9101059,"-12,339.54 ","12,339.54 ",2050,Building Maintenance - Planned,2087,Estates Department (Previously Premises),279.00 
Nottinghamshire Fire and Rescue Service,104167,"Graham Asset Management, John Graham Holdings Limited","Graham Asset Management, John Graham Holdings Limited",Management & Support Services,5,202302,05/05/2022,P6,9101059,"-12,339.54 ","12,339.54 ",2050,Building Maintenance - Planned,2087,Estates Department (Previously Premises),289.55 
Nottinghamshire Fire and Rescue Service,104167,"Graham Asset Management, John Graham Holdings Limited","Graham Asset Management, John Graham Holdings Limited",Management & Support Services,5,202302,05/05/2022,P6,9101059,"-12,339.54 ","12,339.54 ",2050,Building Maintenance - Planned,2087,Estates Department (Previously Premises),317.86 
Nottinghamshire Fire and Rescue Service,104167,"Graham Asset Management, John Graham Holdings Limited","Graham Asset Management, John Graham Holdings Limited",Management & Support Services,5,202302,05/05/2022,P6,9101059,"-12,339.54 ","12,339.54 ",2050,Building Maintenance - Planned,2087,Estates Department (Previously Premises),339.28 
Nottinghamshire Fire and Rescue Service,104167,"Graham Asset Management, John Graham Holdings Limited","Graham Asset Management, John Graham Holdings Limited",Management & Support Services,5,202302,05/05/2022,P6,9101059,"-12,339.54 ","12,339.54 ",2050,Building Maintenance - Planned,2087,Estates Department (Previously Premises),404.69 
Nottinghamshire Fire and Rescue Service,104167,"Graham Asset Management, John Graham Holdings Limited","Graham Asset Management, John Graham Holdings Limited",Management & Support Services,5,202302,05/05/2022,P6,9101059,"-12,339.54 ","12,339.54 ",2050,Building Maintenance - Planned,2087,Estates Department (Previously Premises),431.40 
Nottinghamshire Fire and Rescue Service,104167,"Graham Asset Management, John Graham Holdings Limited","Graham Asset Management, John Graham Holdings Limited",Management & Support Services,5,202302,05/05/2022,P6,9101059,"-12,339.54 ","12,339.54 ",2050,Building Maintenance - Planned,2087,Estates Department (Previously Premises),534.72 
Nottinghamshire Fire and Rescue Service,104167,"Graham Asset Management, John Graham Holdings Limited","Graham Asset Management, John Graham Holdings Limited",Management & Support Services,5,202302,05/05/2022,P6,9101059,"-12,339.54 ","12,339.54 ",2050,Building Maintenance - Planned,2087,Estates Department (Previously Premises),765.35 
Nottinghamshire Fire and Rescue Service,104167,"Graham Asset Management, John Graham Holdings Limited","Graham Asset Management, John Graham Holdings Limited",Management & Support Services,5,202302,05/05/2022,P6,9101059,"-12,339.54 ","12,339.54 ",2050,Building Maintenance - Planned,2087,Estates Department (Previously Premises),"1,391.74 "
Nottinghamshire Fire and Rescue Service,104167,"Graham Asset Management, John Graham Holdings Limited","Graham Asset Management, John Graham Holdings Limited",Management & Support Services,5,202302,05/05/2022,P6,9101059,"-12,339.54 ","12,339.54 ",2050,Building Maintenance - Planned,2087,Estates Department (Previously Premises),"1,867.60 "
Nottinghamshire Fire and Rescue Service,104167,"Graham Asset Management, John Graham Holdings Limited","Graham Asset Management, John Graham Holdings Limited",Management & Support Services,5,202302,05/05/2022,P6,9101059,"-12,339.54 ","12,339.54 ",2050,Building Maintenance - Planned,2087,Estates Department (Previously Premises),"1,959.50 "
Nottinghamshire Fire and Rescue Service,103820,VIA East Midlands Ltd,VIA East Midlands Ltd,Management & Support Services,5,202302,05/05/2022,P6,9101283,"-9,842.80 ","9,842.80 ",3100,Fleet Maintenance - Planned,2084,Engineering,"8,211.22 "
Nottinghamshire Fire and Rescue Service,103820,VIA East Midlands Ltd,VIA East Midlands Ltd,Management & Support Services,5,202302,05/05/2022,P6,9101290,"-17,431.20 ","17,431.20 ",3103,Fleet Maintenance - Unplanned,2084,Engineering,"14,526.00 "
Nottinghamshire Fire and Rescue Service,103820,VIA East Midlands Ltd,VIA East Midlands Ltd,Management & Support Services,5,202302,05/05/2022,P6,9101322,-292.67 ,292.67 ,3104,Fleet - Accident Repairs,2084,Engineering,243.89 
Nottinghamshire Fire and Rescue Service,103242,New Balance Athletic Shoes (UK) Limited,New Balance Athletic Shoes (UK) Limited,Management & Support Services,5,202302,05/05/2022,P6,9101107,-380.04 ,380.04 ,B314,Stock   ,9999,Default,316.70 
Nottinghamshire Fire and Rescue Service,104180,G.F. Tomlinson Building Limited,G.F. Tomlinson Building Limited,Management & Support Services,5,202302,05/05/2022,P6,9101077,"-548,902.91 ","548,902.91 ",C101,Building Works,4102,Strategic New Build Projects,"457,419.09 "
Nottinghamshire Fire and Rescue Service,100437,Nottinghamshire Fire Safety Limited,Nottinghamshire Fire Safety Limited,Management & Support Services,1,202302,06/05/2022,P6,9101095,-510.00 ,510.00 ,1801,Training,2059,Corporate Training,425.00 
Nottinghamshire Fire and Rescue Service,102744,EDF Energy,EDF Energy,Operational Responses,1,202302,06/05/2022,P6,9101090,"-1,434.84 ","1,434.84 ",2100,Electricity,1026,Arnold,4.32 
Nottinghamshire Fire and Rescue Service,102744,EDF Energy,EDF Energy,Operational Responses,1,202302,06/05/2022,P6,9101090,"-1,434.84 ","1,434.84 ",2100,Electricity,1026,Arnold,"1,192.10 "
Nottinghamshire Fire and Rescue Service,102744,EDF Energy,EDF Energy,Operational Responses,1,202302,06/05/2022,P6,9101125,-733.95 ,733.95 ,2100,Electricity,1001,Mansfield,0.82 
Nottinghamshire Fire and Rescue Service,102744,EDF Energy,EDF Energy,Operational Responses,1,202302,06/05/2022,P6,9101125,-733.95 ,733.95 ,2100,Electricity,1001,Mansfield,610.94 
Nottinghamshire Fire and Rescue Service,102744,EDF Energy,EDF Energy,Operational Responses,1,202302,06/05/2022,P6,9101332,"-2,309.95 ","2,309.95 ",2100,Electricity,1008,Worksop,0.72 
Nottinghamshire Fire and Rescue Service,102744,EDF Energy,EDF Energy,Operational Responses,1,202302,06/05/2022,P6,9101332,"-2,309.95 ","2,309.95 ",2100,Electricity,1008,Worksop,"1,924.36 "
Nottinghamshire Fire and Rescue Service,102744,EDF Energy,EDF Energy,Operational Responses,1,202302,06/05/2022,P6,9101334,-693.22 ,693.22 ,2100,Electricity,1013,Tuxford,577.69 
Nottinghamshire Fire and Rescue Service,102744,EDF Energy,EDF Energy,Operational Responses,1,202302,06/05/2022,P6,9101335,"-4,449.51 ","4,449.51 ",2100,Electricity,1023,Stapleford,1.72 
Nottinghamshire Fire and Rescue Service,102744,EDF Energy,EDF Energy,Operational Responses,1,202302,06/05/2022,P6,9101335,"-4,449.51 ","4,449.51 ",2100,Electricity,1023,Stapleford,"3,706.49 "
Nottinghamshire Fire and Rescue Service,101942,Freeths LLP,Freeths LLP,Management & Support Services,1,202302,06/05/2022,P6,9101168,"-3,607.20 ","3,607.20 ",7002,Legal Services,2087,Estates Department (Previously Premises),"3,006.00 "
Nottinghamshire Fire and Rescue Service,100299,FireAngel Safety Technology Limited,FireAngel Safety Technology Limited,Management & Support Services,1,202302,06/05/2022,P6,9101082,"-4,680.00 ","4,680.00 ",B314,Stock   ,9999,Default,"3,900.00 "
Nottinghamshire Fire and Rescue Service,100299,FireAngel Safety Technology Limited,FireAngel Safety Technology Limited,Management & Support Services,1,202302,06/05/2022,P6,9101117,"-4,680.00 ","4,680.00 ",B314,Stock   ,9999,Default,"3,900.00 "
Nottinghamshire Fire and Rescue Service,103126,Lindum Group Limited,Lindum Group Limited,Management & Support Services,5,202302,06/05/2022,P6,9101184,"-59,955.59 ","59,955.59 ",C101,Building Works,4100,Fire Station Improvement & Refurbishments,"49,962.99 "
Nottinghamshire Fire and Rescue Service,102744,EDF Energy,EDF Energy,Operational Responses,1,202302,08/05/2022,P6,9101218,"-1,330.21 ","1,330.21 ",2100,Electricity,1010,Harworth,2.01 
Nottinghamshire Fire and Rescue Service,102744,EDF Energy,EDF Energy,Operational Responses,1,202302,08/05/2022,P6,9101218,"-1,330.21 ","1,330.21 ",2100,Electricity,1010,Harworth,"1,106.83 "
Nottinghamshire Fire and Rescue Service,102744,EDF Energy,EDF Energy,Operational Responses,1,202302,08/05/2022,P6,9101338,"-7,209.30 ","7,209.30 ",2100,Electricity,1019,West Bridgford,"6,007.75 "
Nottinghamshire Fire and Rescue Service,102420,BT PLC,BT PLC,Management & Support Services,1,202302,08/05/2022,P6,9101297,"-2,218.70 ","2,218.70 ",4301,Phones - Landline,2097,ICT Service Operations,70.00 
Nottinghamshire Fire and Rescue Service,102420,BT PLC,BT PLC,Management & Support Services,1,202302,08/05/2022,P6,9101297,"-2,218.70 ","2,218.70 ",4301,Phones - Landline,2097,ICT Service Operations,"1,790.58 "
Nottinghamshire Fire and Rescue Service,102744,EDF Energy,EDF Energy,Operational Responses,1,202302,09/05/2022,P6,9101219,"-2,566.07 ","2,566.07 ",2100,Electricity,1001,Mansfield,6.08 
Nottinghamshire Fire and Rescue Service,102744,EDF Energy,EDF Energy,Operational Responses,1,202302,09/05/2022,P6,9101219,"-2,566.07 ","2,566.07 ",2100,Electricity,1001,Mansfield,"2,133.33 "
Nottinghamshire Fire and Rescue Service,102744,EDF Energy,EDF Energy,Operational Responses,1,202302,09/05/2022,P6,9101221,-457.12 ,457.12 ,2100,Electricity,1007,Warsop,380.93 
Nottinghamshire Fire and Rescue Service,103443,Terberg DTS UK Limited,Terberg DTS UK Limited,Management & Support Services,5,202302,09/05/2022,P6,9101097,-388.88 ,388.88 ,4008,Equipment Reative Maintenance,2084,Engineering,324.06 
Nottinghamshire Fire and Rescue Service,599999,Sundry Account Interview Expenses,Redacted Personal Data,Management & Support Services,2,202302,09/05/2022,P6,9101075,-500.00 ,500.00 ,4893,Insurance - Uninsured Losses/ Excess,2063,Risk Management & Insurance,500.00 
Nottinghamshire Fire and Rescue Service,101782,Derbyshire Fire Authority,Derbyshire Fire Authority,Management & Support Services,4,202302,09/05/2022,P6,9101073,"-22,060.28 ","22,060.28 ",5000,Third Party Payments,1089,Pension Costs met from Revenue,"18,383.57 "
Nottinghamshire Fire and Rescue Service,103860,Debora Link Creative,Debora Link Creative,Management & Support Services,5,202302,09/05/2022,P6,9101281,-304.00 ,304.00 ,C154,Professional Fees - Design,2054,Equalities Team,304.00 
Nottinghamshire Fire and Rescue Service,102744,EDF Energy,EDF Energy,Operational Responses,1,202302,10/05/2022,P6,9101220,-418.41 ,418.41 ,2100,Electricity,1014,Southwell,0.40 
Nottinghamshire Fire and Rescue Service,102744,EDF Energy,EDF Energy,Operational Responses,1,202302,10/05/2022,P6,9101220,-418.41 ,418.41 ,2100,Electricity,1014,Southwell,348.34 
Nottinghamshire Fire and Rescue Service,102744,EDF Energy,EDF Energy,Operational Responses,1,202302,10/05/2022,P6,9101215,948.00 ,-948.00 ,2100,Electricity,1011,Misterton,-790.00 
Nottinghamshire Fire and Rescue Service,102744,EDF Energy,EDF Energy,Operational Responses,1,202302,10/05/2022,P6,9101216,883.67 ,-883.67 ,2100,Electricity,1011,Misterton,-734.28 
Nottinghamshire Fire and Rescue Service,102744,EDF Energy,EDF Energy,Operational Responses,1,202302,10/05/2022,P6,9101216,883.67 ,-883.67 ,2100,Electricity,1011,Misterton,-2.53 
Nottinghamshire Fire and Rescue Service,101851,Complete Business Solutions Group Ltd,Complete Business Solutions Group Ltd,Operational Responses,1,202302,10/05/2022,P6,9101242,-373.68 ,373.68 ,2203,Cleaning Materials,1020,Stockhill,311.40 
Nottinghamshire Fire and Rescue Service,103695,Pulp Friction Smoothie Bar CIC,Pulp Friction Smoothie Bar CIC,Management & Support Services,5,202302,10/05/2022,P6,9101096,"-2,280.00 ","2,280.00 ",4523,Catering/Food & Beverages,2059,Corporate Training,"1,900.00 "
Nottinghamshire Fire and Rescue Service,104061,Everbright Lodge Limited T/A The Wild Pheasant Hotel and Spa,Everbright Lodge Limited T/A The Wild Pheasant Hotel and Spa,Management & Support Services,5,202302,10/05/2022,P6,9101273,"-1,364.35 ","1,364.35 ",4561,Overnight Accomodation,2059,Corporate Training,"1,136.96 "
Nottinghamshire Fire and Rescue Service,102051,Johnsons Business Moves,Johnsons Business Moves,Management & Support Services,1,202302,10/05/2022,P6,9101143,"-2,220.00 ","2,220.00 ",C107,Business Moves,4102,Strategic New Build Projects,"1,850.00 "
Nottinghamshire Fire and Rescue Service,103094,Draeger Safety UK Limited,Draeger Safety UK Limited,Management & Support Services,5,202302,11/05/2022,P6,9101236,"-1,530.00 ","1,530.00 ",4002,Breathing Apparatus,2084,Engineering,"1,275.00 "
Nottinghamshire Fire and Rescue Service,103849,Vision Support Services Ltd,Vision Support Services Ltd,Operational Responses,5,202302,11/05/2022,P6,9101178,-411.48 ,411.48 ,4600,Community Safety Delivery Consumables,1003,London Road,342.90 
Nottinghamshire Fire and Rescue Service,100557,NCC Sundry Debtors,NCC Sundry Debtors,Operational Responses,4,202302,12/05/2022,P6,9101289,"-1,143.22 ","1,143.22 ",2204,Contract Cleaning,1001,Mansfield,30.84 
Nottinghamshire Fire and Rescue Service,100557,NCC Sundry Debtors,NCC Sundry Debtors,Operational Responses,4,202302,12/05/2022,P6,9101289,"-1,143.22 ","1,143.22 ",2204,Contract Cleaning,1002,Blidworth,23.14 
Nottinghamshire Fire and Rescue Service,100557,NCC Sundry Debtors,NCC Sundry Debtors,Operational Responses,4,202302,12/05/2022,P6,9101289,"-1,143.22 ","1,143.22 ",2204,Contract Cleaning,1003,London Road,28.92 
Nottinghamshire Fire and Rescue Service,100557,NCC Sundry Debtors,NCC Sundry Debtors,Operational Responses,4,202302,12/05/2022,P6,9101289,"-1,143.22 ","1,143.22 ",2204,Contract Cleaning,1005,Ashfield,30.84 
Nottinghamshire Fire and Rescue Service,100557,NCC Sundry Debtors,NCC Sundry Debtors,Operational Responses,4,202302,12/05/2022,P6,9101289,"-1,143.22 ","1,143.22 ",2204,Contract Cleaning,1006,Edwinstowe,23.14 
Nottinghamshire Fire and Rescue Service,100557,NCC Sundry Debtors,NCC Sundry Debtors,Operational Responses,4,202302,12/05/2022,P6,9101289,"-1,143.22 ","1,143.22 ",2204,Contract Cleaning,1007,Warsop,23.14 
Nottinghamshire Fire and Rescue Service,100557,NCC Sundry Debtors,NCC Sundry Debtors,Operational Responses,4,202302,12/05/2022,P6,9101289,"-1,143.22 ","1,143.22 ",2204,Contract Cleaning,1008,Worksop,30.84 
Nottinghamshire Fire and Rescue Service,100557,NCC Sundry Debtors,NCC Sundry Debtors,Operational Responses,4,202302,12/05/2022,P6,9101289,"-1,143.22 ","1,143.22 ",2204,Contract Cleaning,1010,Harworth,23.14 
Nottinghamshire Fire and Rescue Service,100557,NCC Sundry Debtors,NCC Sundry Debtors,Operational Responses,4,202302,12/05/2022,P6,9101289,"-1,143.22 ","1,143.22 ",2204,Contract Cleaning,1011,Misterton,23.14 
Nottinghamshire Fire and Rescue Service,100557,NCC Sundry Debtors,NCC Sundry Debtors,Operational Responses,4,202302,12/05/2022,P6,9101289,"-1,143.22 ","1,143.22 ",2204,Contract Cleaning,1012,Retford,23.14 
Nottinghamshire Fire and Rescue Service,100557,NCC Sundry Debtors,NCC Sundry Debtors,Operational Responses,4,202302,12/05/2022,P6,9101289,"-1,143.22 ","1,143.22 ",2204,Contract Cleaning,1013,Tuxford,23.14 
Nottinghamshire Fire and Rescue Service,100557,NCC Sundry Debtors,NCC Sundry Debtors,Operational Responses,4,202302,12/05/2022,P6,9101289,"-1,143.22 ","1,143.22 ",2204,Contract Cleaning,1014,Southwell,23.14 
Nottinghamshire Fire and Rescue Service,100557,NCC Sundry Debtors,NCC Sundry Debtors,Operational Responses,4,202302,12/05/2022,P6,9101289,"-1,143.22 ","1,143.22 ",2204,Contract Cleaning,1015,Collingham,23.14 
Nottinghamshire Fire and Rescue Service,100557,NCC Sundry Debtors,NCC Sundry Debtors,Operational Responses,4,202302,12/05/2022,P6,9101289,"-1,143.22 ","1,143.22 ",2204,Contract Cleaning,1016,Newark,30.84 
Nottinghamshire Fire and Rescue Service,100557,NCC Sundry Debtors,NCC Sundry Debtors,Operational Responses,4,202302,12/05/2022,P6,9101289,"-1,143.22 ","1,143.22 ",2204,Contract Cleaning,1017,Bingham,23.14 
Nottinghamshire Fire and Rescue Service,100557,NCC Sundry Debtors,NCC Sundry Debtors,Operational Responses,4,202302,12/05/2022,P6,9101289,"-1,143.22 ","1,143.22 ",2204,Contract Cleaning,1019,West Bridgford,30.84 
Nottinghamshire Fire and Rescue Service,100557,NCC Sundry Debtors,NCC Sundry Debtors,Operational Responses,4,202302,12/05/2022,P6,9101289,"-1,143.22 ","1,143.22 ",2204,Contract Cleaning,1020,Stockhill,30.84 
Nottinghamshire Fire and Rescue Service,100557,NCC Sundry Debtors,NCC Sundry Debtors,Operational Responses,4,202302,12/05/2022,P6,9101289,"-1,143.22 ","1,143.22 ",2204,Contract Cleaning,1023,Stapleford,23.14 
Nottinghamshire Fire and Rescue Service,100557,NCC Sundry Debtors,NCC Sundry Debtors,Operational Responses,4,202302,12/05/2022,P6,9101289,"-1,143.22 ","1,143.22 ",2204,Contract Cleaning,1024,Eastwood,23.14 
Nottinghamshire Fire and Rescue Service,100557,NCC Sundry Debtors,NCC Sundry Debtors,Operational Responses,4,202302,12/05/2022,P6,9101289,"-1,143.22 ","1,143.22 ",2204,Contract Cleaning,1026,Arnold,30.84 
Nottinghamshire Fire and Rescue Service,100557,NCC Sundry Debtors,NCC Sundry Debtors,Operational Responses,4,202302,12/05/2022,P6,9101289,"-1,143.22 ","1,143.22 ",2204,Contract Cleaning,1027,Carlton,30.84 
Nottinghamshire Fire and Rescue Service,100557,NCC Sundry Debtors,NCC Sundry Debtors,Operational Responses,4,202302,12/05/2022,P6,9101289,"-1,143.22 ","1,143.22 ",2204,Contract Cleaning,1028,East Leake,23.14 
Nottinghamshire Fire and Rescue Service,100557,NCC Sundry Debtors,NCC Sundry Debtors,Operational Responses,4,202302,12/05/2022,P6,9101289,"-1,143.22 ","1,143.22 ",2204,Contract Cleaning,1029,Highfields Station,30.84 
Nottinghamshire Fire and Rescue Service,100557,NCC Sundry Debtors,NCC Sundry Debtors,Management & Support Services,4,202302,12/05/2022,P6,9101289,"-1,143.22 ","1,143.22 ",2204,Contract Cleaning,1030,Service Development Centre,69.38 
Nottinghamshire Fire and Rescue Service,100557,NCC Sundry Debtors,NCC Sundry Debtors,Management & Support Services,4,202302,12/05/2022,P6,9101289,"-1,143.22 ","1,143.22 ",2204,Contract Cleaning,1035,Headquarters,276.00 
Nottinghamshire Fire and Rescue Service,100557,NCC Sundry Debtors,NCC Sundry Debtors,Operational Responses,4,202302,12/05/2022,P6,9101375,"-76,022.16 ","76,022.16 ",2204,Contract Cleaning,1001,Mansfield,"4,673.92 "
Nottinghamshire Fire and Rescue Service,100557,NCC Sundry Debtors,NCC Sundry Debtors,Operational Responses,4,202302,12/05/2022,P6,9101375,"-76,022.16 ","76,022.16 ",2204,Contract Cleaning,1002,Blidworth,265.18 
Nottinghamshire Fire and Rescue Service,100557,NCC Sundry Debtors,NCC Sundry Debtors,Operational Responses,4,202302,12/05/2022,P6,9101375,"-76,022.16 ","76,022.16 ",2204,Contract Cleaning,1003,London Road,"5,158.94 "
Nottinghamshire Fire and Rescue Service,100557,NCC Sundry Debtors,NCC Sundry Debtors,Operational Responses,4,202302,12/05/2022,P6,9101375,"-76,022.16 ","76,022.16 ",2204,Contract Cleaning,1005,Ashfield,"2,618.52 "
Nottinghamshire Fire and Rescue Service,100557,NCC Sundry Debtors,NCC Sundry Debtors,Operational Responses,4,202302,12/05/2022,P6,9101375,"-76,022.16 ","76,022.16 ",2204,Contract Cleaning,1006,Edwinstowe,"2,021.76 "
Nottinghamshire Fire and Rescue Service,100557,NCC Sundry Debtors,NCC Sundry Debtors,Operational Responses,4,202302,12/05/2022,P6,9101375,"-76,022.16 ","76,022.16 ",2204,Contract Cleaning,1007,Warsop,331.18 
Nottinghamshire Fire and Rescue Service,100557,NCC Sundry Debtors,NCC Sundry Debtors,Operational Responses,4,202302,12/05/2022,P6,9101375,"-76,022.16 ","76,022.16 ",2204,Contract Cleaning,1008,Worksop,"2,949.88 "
Nottinghamshire Fire and Rescue Service,100557,NCC Sundry Debtors,NCC Sundry Debtors,Operational Responses,4,202302,12/05/2022,P6,9101375,"-76,022.16 ","76,022.16 ",2204,Contract Cleaning,1010,Harworth,662.54 
Nottinghamshire Fire and Rescue Service,100557,NCC Sundry Debtors,NCC Sundry Debtors,Operational Responses,4,202302,12/05/2022,P6,9101375,"-76,022.16 ","76,022.16 ",2204,Contract Cleaning,1011,Misterton,530.16 
Nottinghamshire Fire and Rescue Service,100557,NCC Sundry Debtors,NCC Sundry Debtors,Operational Responses,4,202302,12/05/2022,P6,9101375,"-76,022.16 ","76,022.16 ",2204,Contract Cleaning,1012,Retford,"3,347.52 "
Nottinghamshire Fire and Rescue Service,100557,NCC Sundry Debtors,NCC Sundry Debtors,Operational Responses,4,202302,12/05/2022,P6,9101375,"-76,022.16 ","76,022.16 ",2204,Contract Cleaning,1013,Tuxford,397.38 
Nottinghamshire Fire and Rescue Service,100557,NCC Sundry Debtors,NCC Sundry Debtors,Operational Responses,4,202302,12/05/2022,P6,9101375,"-76,022.16 ","76,022.16 ",2204,Contract Cleaning,1014,Southwell,596.36 
Nottinghamshire Fire and Rescue Service,100557,NCC Sundry Debtors,NCC Sundry Debtors,Operational Responses,4,202302,12/05/2022,P6,9101375,"-76,022.16 ","76,022.16 ",2204,Contract Cleaning,1015,Collingham,596.36 
Nottinghamshire Fire and Rescue Service,100557,NCC Sundry Debtors,NCC Sundry Debtors,Operational Responses,4,202302,12/05/2022,P6,9101375,"-76,022.16 ","76,022.16 ",2204,Contract Cleaning,1016,Newark,"2,618.52 "
Nottinghamshire Fire and Rescue Service,100557,NCC Sundry Debtors,NCC Sundry Debtors,Operational Responses,4,202302,12/05/2022,P6,9101375,"-76,022.16 ","76,022.16 ",2204,Contract Cleaning,1017,Bingham,397.76 
Nottinghamshire Fire and Rescue Service,100557,NCC Sundry Debtors,NCC Sundry Debtors,Operational Responses,4,202302,12/05/2022,P6,9101375,"-76,022.16 ","76,022.16 ",2204,Contract Cleaning,1019,West Bridgford,"4,010.00 "
Nottinghamshire Fire and Rescue Service,100557,NCC Sundry Debtors,NCC Sundry Debtors,Operational Responses,4,202302,12/05/2022,P6,9101375,"-76,022.16 ","76,022.16 ",2204,Contract Cleaning,1020,Stockhill,"3,281.24 "
Nottinghamshire Fire and Rescue Service,100557,NCC Sundry Debtors,NCC Sundry Debtors,Operational Responses,4,202302,12/05/2022,P6,9101375,"-76,022.16 ","76,022.16 ",2204,Contract Cleaning,1023,Stapleford,993.82 
Nottinghamshire Fire and Rescue Service,100557,NCC Sundry Debtors,NCC Sundry Debtors,Operational Responses,4,202302,12/05/2022,P6,9101375,"-76,022.16 ","76,022.16 ",2204,Contract Cleaning,1024,Eastwood,662.44 
Nottinghamshire Fire and Rescue Service,100557,NCC Sundry Debtors,NCC Sundry Debtors,Operational Responses,4,202302,12/05/2022,P6,9101375,"-76,022.16 ","76,022.16 ",2204,Contract Cleaning,1026,Arnold,"2,452.86 "
Nottinghamshire Fire and Rescue Service,100557,NCC Sundry Debtors,NCC Sundry Debtors,Operational Responses,4,202302,12/05/2022,P6,9101375,"-76,022.16 ","76,022.16 ",2204,Contract Cleaning,1027,Carlton,"4,607.64 "
Nottinghamshire Fire and Rescue Service,100557,NCC Sundry Debtors,NCC Sundry Debtors,Operational Responses,4,202302,12/05/2022,P6,9101375,"-76,022.16 ","76,022.16 ",2204,Contract Cleaning,1028,East Leake,397.48 
Nottinghamshire Fire and Rescue Service,100557,NCC Sundry Debtors,NCC Sundry Debtors,Operational Responses,4,202302,12/05/2022,P6,9101375,"-76,022.16 ","76,022.16 ",2204,Contract Cleaning,1029,Highfields Station,"8,638.08 "
Nottinghamshire Fire and Rescue Service,100557,NCC Sundry Debtors,NCC Sundry Debtors,Management & Support Services,4,202302,12/05/2022,P6,9101375,"-76,022.16 ","76,022.16 ",2204,Contract Cleaning,1030,Service Development Centre,"3,579.62 "
Nottinghamshire Fire and Rescue Service,100557,NCC Sundry Debtors,NCC Sundry Debtors,Management & Support Services,4,202302,12/05/2022,P6,9101375,"-76,022.16 ","76,022.16 ",2204,Contract Cleaning,1035,Headquarters,"7,562.64 "
Nottinghamshire Fire and Rescue Service,100557,NCC Sundry Debtors,NCC Sundry Debtors,Operational Responses,4,202302,12/05/2022,P6,9101291,-939.22 ,939.22 ,2205,Window Cleaning,1001,Mansfield,38.54 
Nottinghamshire Fire and Rescue Service,100557,NCC Sundry Debtors,NCC Sundry Debtors,Operational Responses,4,202302,12/05/2022,P6,9101291,-939.22 ,939.22 ,2205,Window Cleaning,1002,Blidworth,23.14 
Nottinghamshire Fire and Rescue Service,100557,NCC Sundry Debtors,NCC Sundry Debtors,Operational Responses,4,202302,12/05/2022,P6,9101291,-939.22 ,939.22 ,2205,Window Cleaning,1003,London Road,46.26 
Nottinghamshire Fire and Rescue Service,100557,NCC Sundry Debtors,NCC Sundry Debtors,Operational Responses,4,202302,12/05/2022,P6,9101291,-939.22 ,939.22 ,2205,Window Cleaning,1005,Ashfield,23.14 
Nottinghamshire Fire and Rescue Service,100557,NCC Sundry Debtors,NCC Sundry Debtors,Operational Responses,4,202302,12/05/2022,P6,9101291,-939.22 ,939.22 ,2205,Window Cleaning,1006,Edwinstowe,34.70 
Nottinghamshire Fire and Rescue Service,100557,NCC Sundry Debtors,NCC Sundry Debtors,Operational Responses,4,202302,12/05/2022,P6,9101291,-939.22 ,939.22 ,2205,Window Cleaning,1007,Warsop,19.28 
Nottinghamshire Fire and Rescue Service,100557,NCC Sundry Debtors,NCC Sundry Debtors,Operational Responses,4,202302,12/05/2022,P6,9101291,-939.22 ,939.22 ,2205,Window Cleaning,1008,Worksop,23.14 
Nottinghamshire Fire and Rescue Service,100557,NCC Sundry Debtors,NCC Sundry Debtors,Operational Responses,4,202302,12/05/2022,P6,9101291,-939.22 ,939.22 ,2205,Window Cleaning,1010,Harworth,23.14 
Nottinghamshire Fire and Rescue Service,100557,NCC Sundry Debtors,NCC Sundry Debtors,Operational Responses,4,202302,12/05/2022,P6,9101291,-939.22 ,939.22 ,2205,Window Cleaning,1011,Misterton,23.14 
Nottinghamshire Fire and Rescue Service,100557,NCC Sundry Debtors,NCC Sundry Debtors,Operational Responses,4,202302,12/05/2022,P6,9101291,-939.22 ,939.22 ,2205,Window Cleaning,1012,Retford,30.84 
Nottinghamshire Fire and Rescue Service,100557,NCC Sundry Debtors,NCC Sundry Debtors,Operational Responses,4,202302,12/05/2022,P6,9101291,-939.22 ,939.22 ,2205,Window Cleaning,1013,Tuxford,19.28 
Nottinghamshire Fire and Rescue Service,100557,NCC Sundry Debtors,NCC Sundry Debtors,Operational Responses,4,202302,12/05/2022,P6,9101291,-939.22 ,939.22 ,2205,Window Cleaning,1014,Southwell,19.28 
Nottinghamshire Fire and Rescue Service,100557,NCC Sundry Debtors,NCC Sundry Debtors,Operational Responses,4,202302,12/05/2022,P6,9101291,-939.22 ,939.22 ,2205,Window Cleaning,1015,Collingham,23.14 
Nottinghamshire Fire and Rescue Service,100557,NCC Sundry Debtors,NCC Sundry Debtors,Operational Responses,4,202302,12/05/2022,P6,9101291,-939.22 ,939.22 ,2205,Window Cleaning,1016,Newark,23.14 
Nottinghamshire Fire and Rescue Service,100557,NCC Sundry Debtors,NCC Sundry Debtors,Operational Responses,4,202302,12/05/2022,P6,9101291,-939.22 ,939.22 ,2205,Window Cleaning,1017,Bingham,23.14 
Nottinghamshire Fire and Rescue Service,100557,NCC Sundry Debtors,NCC Sundry Debtors,Operational Responses,4,202302,12/05/2022,P6,9101291,-939.22 ,939.22 ,2205,Window Cleaning,1019,West Bridgford,26.98 
Nottinghamshire Fire and Rescue Service,100557,NCC Sundry Debtors,NCC Sundry Debtors,Operational Responses,4,202302,12/05/2022,P6,9101291,-939.22 ,939.22 ,2205,Window Cleaning,1020,Stockhill,34.70 
Nottinghamshire Fire and Rescue Service,100557,NCC Sundry Debtors,NCC Sundry Debtors,Operational Responses,4,202302,12/05/2022,P6,9101291,-939.22 ,939.22 ,2205,Window Cleaning,1023,Stapleford,23.14 
Nottinghamshire Fire and Rescue Service,100557,NCC Sundry Debtors,NCC Sundry Debtors,Operational Responses,4,202302,12/05/2022,P6,9101291,-939.22 ,939.22 ,2205,Window Cleaning,1024,Eastwood,23.14 
Nottinghamshire Fire and Rescue Service,100557,NCC Sundry Debtors,NCC Sundry Debtors,Operational Responses,4,202302,12/05/2022,P6,9101291,-939.22 ,939.22 ,2205,Window Cleaning,1026,Arnold,23.14 
Nottinghamshire Fire and Rescue Service,100557,NCC Sundry Debtors,NCC Sundry Debtors,Operational Responses,4,202302,12/05/2022,P6,9101291,-939.22 ,939.22 ,2205,Window Cleaning,1027,Carlton,30.84 
Nottinghamshire Fire and Rescue Service,100557,NCC Sundry Debtors,NCC Sundry Debtors,Operational Responses,4,202302,12/05/2022,P6,9101291,-939.22 ,939.22 ,2205,Window Cleaning,1028,East Leake,23.14 
Nottinghamshire Fire and Rescue Service,100557,NCC Sundry Debtors,NCC Sundry Debtors,Operational Responses,4,202302,12/05/2022,P6,9101291,-939.22 ,939.22 ,2205,Window Cleaning,1029,Highfields Station,77.10 
Nottinghamshire Fire and Rescue Service,100557,NCC Sundry Debtors,NCC Sundry Debtors,Management & Support Services,4,202302,12/05/2022,P6,9101291,-939.22 ,939.22 ,2205,Window Cleaning,1030,Service Development Centre,26.98 
Nottinghamshire Fire and Rescue Service,100557,NCC Sundry Debtors,NCC Sundry Debtors,Management & Support Services,4,202302,12/05/2022,P6,9101291,-939.22 ,939.22 ,2205,Window Cleaning,1035,Headquarters,100.22 
Nottinghamshire Fire and Rescue Service,100468,Specialised Canvas Group,Specialised Canvas Group,Management & Support Services,1,202302,12/05/2022,P6,9101386,-592.36 ,592.36 ,4534,Carriage and Packaging,2086,Procurement,23.03 
Nottinghamshire Fire and Rescue Service,104132,West Yorkshire Pension Fund,West Yorkshire Pension Fund,Management & Support Services,5,202302,12/05/2022,P6,9101411,"-40,505.32 ","40,505.32 ",7500,Treasury Services,2081,Finance,"33,754.43 "
Nottinghamshire Fire and Rescue Service,100114,Goliath Footwear Ltd,Goliath Footwear Ltd,Management & Support Services,1,202302,12/05/2022,P6,9101213,"-1,254.00 ","1,254.00 ",B314,Stock   ,9999,Default,"1,045.00 "
Nottinghamshire Fire and Rescue Service,100468,Specialised Canvas Group,Specialised Canvas Group,Management & Support Services,1,202302,12/05/2022,P6,9101386,-592.36 ,592.36 ,B314,Stock   ,9999,Default,470.60 
Nottinghamshire Fire and Rescue Service,100236,Asian Fire Service Association,Asian Fire Service Association,Management & Support Services,1,202302,13/05/2022,P6,9101325,-415.00 ,415.00 ,1801,Training,2054,Equalities Team,195.00 
Nottinghamshire Fire and Rescue Service,100236,Asian Fire Service Association,Asian Fire Service Association,Management & Support Services,1,202302,13/05/2022,P6,9101325,-415.00 ,415.00 ,1801,Training,2054,Equalities Team,220.00 
Nottinghamshire Fire and Rescue Service,103377,Flat Fee Recruiter Limited,Flat Fee Recruiter Limited,Management & Support Services,5,202302,13/05/2022,P6,9101310,-298.80 ,298.80 ,1850,Recruitment Advertising,2049,Professional Support,249.00 
Nottinghamshire Fire and Rescue Service,100557,NCC Sundry Debtors,NCC Sundry Debtors,Operational Responses,4,202302,13/05/2022,P6,9101369,"-5,936.38 ","5,936.38 ",2201,Grounds Maintenance,1001,Mansfield,79.20 
Nottinghamshire Fire and Rescue Service,100557,NCC Sundry Debtors,NCC Sundry Debtors,Operational Responses,4,202302,13/05/2022,P6,9101369,"-5,936.38 ","5,936.38 ",2201,Grounds Maintenance,1002,Blidworth,135.68 
Nottinghamshire Fire and Rescue Service,100557,NCC Sundry Debtors,NCC Sundry Debtors,Operational Responses,4,202302,13/05/2022,P6,9101369,"-5,936.38 ","5,936.38 ",2201,Grounds Maintenance,1003,London Road,72.80 
Nottinghamshire Fire and Rescue Service,100557,NCC Sundry Debtors,NCC Sundry Debtors,Operational Responses,4,202302,13/05/2022,P6,9101369,"-5,936.38 ","5,936.38 ",2201,Grounds Maintenance,1005,Ashfield,364.08 
Nottinghamshire Fire and Rescue Service,100557,NCC Sundry Debtors,NCC Sundry Debtors,Operational Responses,4,202302,13/05/2022,P6,9101369,"-5,936.38 ","5,936.38 ",2201,Grounds Maintenance,1006,Edwinstowe,77.02 
Nottinghamshire Fire and Rescue Service,100557,NCC Sundry Debtors,NCC Sundry Debtors,Operational Responses,4,202302,13/05/2022,P6,9101369,"-5,936.38 ","5,936.38 ",2201,Grounds Maintenance,1007,Warsop,6.64 
Nottinghamshire Fire and Rescue Service,100557,NCC Sundry Debtors,NCC Sundry Debtors,Operational Responses,4,202302,13/05/2022,P6,9101369,"-5,936.38 ","5,936.38 ",2201,Grounds Maintenance,1008,Worksop,71.90 
Nottinghamshire Fire and Rescue Service,100557,NCC Sundry Debtors,NCC Sundry Debtors,Operational Responses,4,202302,13/05/2022,P6,9101369,"-5,936.38 ","5,936.38 ",2201,Grounds Maintenance,1010,Harworth,84.52 
Nottinghamshire Fire and Rescue Service,100557,NCC Sundry Debtors,NCC Sundry Debtors,Operational Responses,4,202302,13/05/2022,P6,9101369,"-5,936.38 ","5,936.38 ",2201,Grounds Maintenance,1011,Misterton,78.46 
Nottinghamshire Fire and Rescue Service,100557,NCC Sundry Debtors,NCC Sundry Debtors,Operational Responses,4,202302,13/05/2022,P6,9101369,"-5,936.38 ","5,936.38 ",2201,Grounds Maintenance,1012,Retford,52.62 
Nottinghamshire Fire and Rescue Service,100557,NCC Sundry Debtors,NCC Sundry Debtors,Operational Responses,4,202302,13/05/2022,P6,9101369,"-5,936.38 ","5,936.38 ",2201,Grounds Maintenance,1013,Tuxford,54.70 
Nottinghamshire Fire and Rescue Service,100557,NCC Sundry Debtors,NCC Sundry Debtors,Operational Responses,4,202302,13/05/2022,P6,9101369,"-5,936.38 ","5,936.38 ",2201,Grounds Maintenance,1014,Southwell,52.00 
Nottinghamshire Fire and Rescue Service,100557,NCC Sundry Debtors,NCC Sundry Debtors,Operational Responses,4,202302,13/05/2022,P6,9101369,"-5,936.38 ","5,936.38 ",2201,Grounds Maintenance,1015,Collingham,30.42 
Nottinghamshire Fire and Rescue Service,100557,NCC Sundry Debtors,NCC Sundry Debtors,Operational Responses,4,202302,13/05/2022,P6,9101369,"-5,936.38 ","5,936.38 ",2201,Grounds Maintenance,1016,Newark,75.56 
Nottinghamshire Fire and Rescue Service,100557,NCC Sundry Debtors,NCC Sundry Debtors,Operational Responses,4,202302,13/05/2022,P6,9101369,"-5,936.38 ","5,936.38 ",2201,Grounds Maintenance,1017,Bingham,128.16 
Nottinghamshire Fire and Rescue Service,100557,NCC Sundry Debtors,NCC Sundry Debtors,Operational Responses,4,202302,13/05/2022,P6,9101369,"-5,936.38 ","5,936.38 ",2201,Grounds Maintenance,1019,West Bridgford,217.28 
Nottinghamshire Fire and Rescue Service,100557,NCC Sundry Debtors,NCC Sundry Debtors,Operational Responses,4,202302,13/05/2022,P6,9101369,"-5,936.38 ","5,936.38 ",2201,Grounds Maintenance,1020,Stockhill,432.20 
Nottinghamshire Fire and Rescue Service,100557,NCC Sundry Debtors,NCC Sundry Debtors,Operational Responses,4,202302,13/05/2022,P6,9101369,"-5,936.38 ","5,936.38 ",2201,Grounds Maintenance,1023,Stapleford,161.00 
Nottinghamshire Fire and Rescue Service,100557,NCC Sundry Debtors,NCC Sundry Debtors,Operational Responses,4,202302,13/05/2022,P6,9101369,"-5,936.38 ","5,936.38 ",2201,Grounds Maintenance,1024,Eastwood,54.18 
Nottinghamshire Fire and Rescue Service,100557,NCC Sundry Debtors,NCC Sundry Debtors,Operational Responses,4,202302,13/05/2022,P6,9101369,"-5,936.38 ","5,936.38 ",2201,Grounds Maintenance,1026,Arnold,22.62 
Nottinghamshire Fire and Rescue Service,100557,NCC Sundry Debtors,NCC Sundry Debtors,Operational Responses,4,202302,13/05/2022,P6,9101369,"-5,936.38 ","5,936.38 ",2201,Grounds Maintenance,1027,Carlton,20.42 
Nottinghamshire Fire and Rescue Service,100557,NCC Sundry Debtors,NCC Sundry Debtors,Operational Responses,4,202302,13/05/2022,P6,9101369,"-5,936.38 ","5,936.38 ",2201,Grounds Maintenance,1028,East Leake,265.72 
Nottinghamshire Fire and Rescue Service,100557,NCC Sundry Debtors,NCC Sundry Debtors,Operational Responses,4,202302,13/05/2022,P6,9101369,"-5,936.38 ","5,936.38 ",2201,Grounds Maintenance,1029,Highfields Station,158.40 
Nottinghamshire Fire and Rescue Service,100557,NCC Sundry Debtors,NCC Sundry Debtors,Management & Support Services,4,202302,13/05/2022,P6,9101369,"-5,936.38 ","5,936.38 ",2201,Grounds Maintenance,1030,Service Development Centre,313.50 
Nottinghamshire Fire and Rescue Service,100557,NCC Sundry Debtors,NCC Sundry Debtors,Management & Support Services,4,202302,13/05/2022,P6,9101369,"-5,936.38 ","5,936.38 ",2201,Grounds Maintenance,1035,Headquarters,"1,937.90 "
Nottinghamshire Fire and Rescue Service,103766,CERTAS,CERTAS,Operational Responses,5,202302,13/05/2022,P6,9101237,"-13,767.56 ","13,767.56 ",3200,Fuel - Vehicle,1008,Worksop,"11,472.97 "
Nottinghamshire Fire and Rescue Service,100408,Central Marine Services Ltd,Central Marine Services Ltd,Management & Support Services,1,202302,13/05/2022,P6,9101185,-295.20 ,295.20 ,4000,Operational Equipment Purchase,2084,Engineering,246.00 
Nottinghamshire Fire and Rescue Service,102215,Performance Monitoring Systems Ltd,Performance Monitoring Systems Ltd,Management & Support Services,1,202302,13/05/2022,P6,9101228,"-6,930.00 ","6,930.00 ",4101,Computer Software Maintenance Contracts,2097,ICT Service Operations,"5,775.00 "
Nottinghamshire Fire and Rescue Service,100260,Plastor Ltd,Plastor Ltd,Management & Support Services,1,202302,13/05/2022,P6,9101326,"-1,731.60 ","1,731.60 ",4500,Furniture,2086,Procurement,93.00 
Nottinghamshire Fire and Rescue Service,100260,Plastor Ltd,Plastor Ltd,Management & Support Services,1,202302,13/05/2022,P6,9101326,"-1,731.60 ","1,731.60 ",4500,Furniture,2086,Procurement,"1,350.00 "
Nottinghamshire Fire and Rescue Service,102218,Kays Medical Ltd,Kays Medical Ltd,Management & Support Services,5,202302,13/05/2022,P6,9101187,-416.94 ,416.94 ,B314,Stock   ,9999,Default,347.45 
Nottinghamshire Fire and Rescue Service,103981,Joseph Gleave and Son Limited -Joseph Gleave and Son (Holdings) Limited,Joseph Gleave and Son Limited -Joseph Gleave and Son (Holdings) Limited,Management & Support Services,5,202302,13/05/2022,P6,9101223,"-2,214.24 ","2,214.24 ",B314,Stock   ,9999,Default,"1,845.20 "
Nottinghamshire Fire and Rescue Service,104020,MPL (Yorkshire) Ltd,MPL (Yorkshire) Ltd,Management & Support Services,5,202302,13/05/2022,P6,9101268,-474.00 ,474.00 ,B314,Stock   ,9999,Default,395.00 
Nottinghamshire Fire and Rescue Service,104023,Wood Lane Timber Merchants Ltd,Wood Lane Timber Merchants Ltd,Management & Support Services,5,202302,13/05/2022,P6,9101307,"-1,454.86 ","1,454.86 ",B314,Stock   ,9999,Default,"1,212.38 "
Nottinghamshire Fire and Rescue Service,103483,Risual Limited,Risual Limited,Management & Support Services,5,202302,13/05/2022,P6,9101321,"-2,040.00 ","2,040.00 ",C202,Consultancy and Services,4300,ICT Capital Programme,"1,700.00 "
Nottinghamshire Fire and Rescue Service,102203,Flogas Britian Limited,Flogas Britian Limited,Management & Support Services,1,202302,15/05/2022,P6,9101440,"-1,173.22 ","1,173.22 ",4006,Oxygen and Other Gases,2084,Engineering,977.68 
Nottinghamshire Fire and Rescue Service,100178,Skills For Justice,Skills For Justice,Management & Support Services,1,202302,16/05/2022,P6,9101183,"-1,575.00 ","1,575.00 ",1801,Training,2059,Corporate Training,"1,575.00 "
Nottinghamshire Fire and Rescue Service,102228,Keltruck Limited,Keltruck Limited,Management & Support Services,1,202302,16/05/2022,P6,9101239,"-1,965.35 ","1,965.35 ",3102,Vehicle Maintenance Outsourced,2084,Engineering,"1,637.79 "
Nottinghamshire Fire and Rescue Service,104196,Central Cars Nottingham Limited,Central Cars Nottingham Limited,Management & Support Services,5,202302,16/05/2022,P6,9101380,-318.00 ,318.00 ,3504,Public Transport,2054,Equalities Team,265.00 
Nottinghamshire Fire and Rescue Service,101851,Complete Business Solutions Group Ltd,Complete Business Solutions Group Ltd,Operational Responses,1,202302,16/05/2022,P6,9101319,-480.00 ,480.00 ,4583,Marketing and Publicity,1020,Stockhill,480.00 
Nottinghamshire Fire and Rescue Service,103094,Draeger Safety UK Limited,Draeger Safety UK Limited,Management & Support Services,5,202302,16/05/2022,P6,9101270,-600.00 ,600.00 ,B314,Stock   ,9999,Default,500.00 
Nottinghamshire Fire and Rescue Service,103043,Stryker UK Ltd,Stryker UK Ltd,Management & Support Services,5,202302,16/05/2022,P6,9101278,-352.80 ,352.80 ,B314,Stock   ,9999,Default,294.00 
Nottinghamshire Fire and Rescue Service,103377,Flat Fee Recruiter Limited,Flat Fee Recruiter Limited,Management & Support Services,5,202302,17/05/2022,P6,9101308,-298.80 ,298.80 ,1850,Recruitment Advertising,2049,Professional Support,249.00 
Nottinghamshire Fire and Rescue Service,103148,Kite Packaging Limited,Kite Packaging Limited,Management & Support Services,5,202302,17/05/2022,P6,9101288,-315.36 ,315.36 ,4534,Carriage and Packaging,2086,Procurement,262.80 
Nottinghamshire Fire and Rescue Service,104222,Bywater Training Limited,Bywater Training Limited,Prevention and Education ,5,202302,18/05/2022,P6,9101393,"-2,034.00 ","2,034.00 ",1801,Training,2026,Fire Investigation,"1,695.00 "
Nottinghamshire Fire and Rescue Service,103766,CERTAS,CERTAS,Operational Responses,5,202302,18/05/2022,P6,9101408,"-2,535.91 ","2,535.91 ",3200,Fuel - Vehicle,1011,Misterton,"2,113.26 "
Nottinghamshire Fire and Rescue Service,103766,CERTAS,CERTAS,Operational Responses,5,202302,18/05/2022,P6,9101409,"-10,620.07 ","10,620.07 ",3200,Fuel - Vehicle,1029,Highfields Station,"8,850.06 "
Nottinghamshire Fire and Rescue Service,103483,Risual Limited,Risual Limited,Management & Support Services,5,202302,18/05/2022,P6,9101257,"-1,772.28 ","1,772.28 ",4301,Phones - Landline,2097,ICT Service Operations,"1,476.90 "
Nottinghamshire Fire and Rescue Service,102190,Dot Promotional Clothing,Dot Promotional Clothing,Management & Support Services,1,202302,18/05/2022,P6,9101428,"-1,461.60 ","1,461.60 ",B314,Stock   ,9999,Default,"1,218.00 "
Nottinghamshire Fire and Rescue Service,102051,Johnsons Business Moves,Johnsons Business Moves,Management & Support Services,1,202302,18/05/2022,P6,9101271,"-1,332.00 ","1,332.00 ",C107,Business Moves,4102,Strategic New Build Projects,"1,110.00 "
Nottinghamshire Fire and Rescue Service,102280,Amptron Electrical Services,Amptron Electrical Services,Management & Support Services,1,202302,19/05/2022,P6,9101305,"-3,380.83 ","3,380.83 ",2000,Buildings Repairs and Maintenance - Reactive,2087,Estates Department (Previously Premises),"2,817.36 "
Nottinghamshire Fire and Rescue Service,102364,Woodway Engineering Limited,Woodway Engineering Limited,Management & Support Services,1,202302,19/05/2022,P6,9101376,-432.00 ,432.00 ,3101,Fleet Modification,2084,Engineering,360.00 
Nottinghamshire Fire and Rescue Service,103695,Pulp Friction Smoothie Bar CIC,Pulp Friction Smoothie Bar CIC,Management & Support Services,5,202302,19/05/2022,P6,9101328,-360.00 ,360.00 ,4523,Catering/Food & Beverages,2093,Command Suite,300.00 
Nottinghamshire Fire and Rescue Service,102306,Northern Diver (International) Ltd,Northern Diver (International) Ltd,Management & Support Services,1,202302,19/05/2022,P6,9101413,"-6,768.00 ","6,768.00 ",C300,Other Equipment - Purchase,4200,Equipment Capital Programme,"5,640.00 "
Nottinghamshire Fire and Rescue Service,102431,Jafco Tools,Jafco Tools,Management & Support Services,1,202302,20/05/2022,P6,9101323,-418.66 ,418.66 ,B314,Stock   ,9999,Default,348.88 
Nottinghamshire Fire and Rescue Service,102280,Amptron Electrical Services,Amptron Electrical Services,Management & Support Services,1,202302,20/05/2022,P6,9101320,-745.20 ,745.20 ,C200,Hardware,4102,Strategic New Build Projects,621.00 
Nottinghamshire Fire and Rescue Service,101512,Frank Key Group Merchants (Nottingham) Ltd,Frank Key Group Merchants (Nottingham) Ltd,Management & Support Services,1,202302,23/05/2022,P6,9101418,-324.00 ,324.00 ,2106,Refuse / Trade Waste Collection,2086,Procurement,270.00 
Nottinghamshire Fire and Rescue Service,103766,CERTAS,CERTAS,Operational Responses,5,202302,23/05/2022,P6,9101410,"-10,456.68 ","10,456.68 ",3200,Fuel - Vehicle,1006,Edwinstowe,"8,713.90 "
Nottinghamshire Fire and Rescue Service,103443,Terberg DTS UK Limited,Terberg DTS UK Limited,Management & Support Services,5,202302,23/05/2022,P6,9101391,-471.79 ,471.79 ,4000,Operational Equipment Purchase,2084,Engineering,0.14 
Nottinghamshire Fire and Rescue Service,103443,Terberg DTS UK Limited,Terberg DTS UK Limited,Management & Support Services,5,202302,23/05/2022,P6,9101391,-471.79 ,471.79 ,4008,Equipment Reative Maintenance,2084,Engineering,393.02 
Nottinghamshire Fire and Rescue Service,102170,Qualsafe.Com,Qualsafe.Com,Management & Support Services,1,202302,24/05/2022,P6,9101368,"-2,354.16 ","2,354.16 ",4594,Training/ Teaching Equipment,2059,Corporate Training,"1,961.80 "
Nottinghamshire Fire and Rescue Service,101712,Browne Jacobson LLP,Browne Jacobson LLP,Management & Support Services,1,202302,24/05/2022,P6,9101398,"-2,400.00 ","2,400.00 ",C157,Professional Fees - Legal,4102,Strategic New Build Projects,"2,000.00 "
Nottinghamshire Fire and Rescue Service,103873,New Media Warehouse Limited T/A synergy Learning,New Media Warehouse Limited T/A synergy Learning,Management & Support Services,5,202302,25/05/2022,P6,9101439,"-15,417.60 ","15,417.60 ",4101,Computer Software Maintenance Contracts,2097,ICT Service Operations,"12,848.00 "
Nottinghamshire Fire and Rescue Service,103695,Pulp Friction Smoothie Bar CIC,Pulp Friction Smoothie Bar CIC,Management & Support Services,5,202302,25/05/2022,P6,9101425,"-1,440.00 ","1,440.00 ",4523,Catering/Food & Beverages,2059,Corporate Training,"1,200.00 "
Nottinghamshire Fire and Rescue Service,102431,Jafco Tools,Jafco Tools,Management & Support Services,1,202302,25/05/2022,P6,9101417,-264.74 ,264.74 ,4534,Carriage and Packaging,2086,Procurement,9.00 
Nottinghamshire Fire and Rescue Service,102431,Jafco Tools,Jafco Tools,Management & Support Services,1,202302,25/05/2022,P6,9101417,-264.74 ,264.74 ,B314,Stock   ,9999,Default,211.62 
Nottinghamshire Fire and Rescue Service,100114,Goliath Footwear Ltd,Goliath Footwear Ltd,Management & Support Services,1,202302,25/05/2022,P6,9101422,"-1,341.67 ","1,341.67 ",B314,Stock   ,9999,Default,"1,118.06 "
Nottinghamshire Fire and Rescue Service,103371,Nottinghamshire Healthcare NHS Trust,Nottinghamshire Healthcare NHS Trust,Management & Support Services,5,202302,26/05/2022,P6,9101416,"-4,286.94 ","4,286.94 ",1005,Admin Agency Staff,2068,Prevention,"4,286.94 "
Nottinghamshire Fire and Rescue Service,103897,The Spray People Group Ltd,The Spray People Group Ltd,Management & Support Services,5,202302,26/05/2022,P6,9101421,-386.34 ,386.34 ,4534,Carriage and Packaging,2086,Procurement,18.00 
Nottinghamshire Fire and Rescue Service,104090,Nottinghamshire Healthcare NHS FDN Trust,Nottinghamshire Healthcare NHS FDN Trust,Management & Support Services,5,202302,26/05/2022,P6,9101433,"-4,243.63 ","4,243.63 ",4554,Consultancy Fees - Non Estates Related,2068,Prevention,"4,243.63 "
Nottinghamshire Fire and Rescue Service,103897,The Spray People Group Ltd,The Spray People Group Ltd,Management & Support Services,5,202302,26/05/2022,P6,9101421,-386.34 ,386.34 ,B314,Stock   ,9999,Default,303.95 
Nottinghamshire Fire and Rescue Service,102744,EDF Energy,EDF Energy,Operational Responses,1,202302,01/10/2021,P6,9101343,"-1,415.42 ","1,415.42 ",2100,Electricity,1006,Edwinstowe,"1,179.51 "
,,,***Note:,,,,,,,,,,,,,
,,,"***The report shows the payment in its original form. This means disaggregating many invoices into individual component payments many of which will be less than £250 in their own right. This explains why you will see many of the amounts showing less than £250. They were, however, paid as part of an invoice of £250 or more.

**** The Invoice date is the date issued on the invoice. This date may fall out of the date range for the report. In most cases this is due to the invoice being received  late.",,,,,,,,,,,,,
